Workbook

Sheet Seriespelsranking
B1: Svenska Hästskokastarförbundets Seriespelsranking
B2: 2022_2023
B3: 2023-04-01
A4: Plac. | B4: Kastare | C4: Klubb | D4: Ranking-snitt | F4: Antal serie-resultat | G4: Total-poäng serie-resultat | I4: Antal vunna dubblar | J4: Antal förlorade dubblar | K4: Antal vunna singlar | L4: Antal förlorade singlar | M4: Antal vunna matcher i % | N4: Inskrivning resultat | BQ4: Uträkning för | BR4: statistik vunna resp. | BS4: förlorade | BT4: dubblar och singlar.
A5: =IF(H5="x",DU5&EF5,DU5&EE5) -> 1(-) | B5: Tobias Gneupel | C5: Sibbamåla | D5: =IF(F5>0.5,(G5/F5),0) -> 234.2666667 | F5: =COUNT(N5:BO5) -> 15 | G5: =SUM(N5:BO5) -> 3514 | H5: x | I5: =COUNTIF(BQ5:DR5,2) -> 0 | J5: =COUNTIF(BQ5:DR5,-2) -> 0 | K5: =COUNTIF(BQ5:DR5,1) -> 0 | L5: =COUNTIF(BQ5:DR5,-1) -> 0 | M5: =IF(F5>0,(I5+K5)/(F5),0) -> 0 | N5: 224 | O5: 163 | P5: 201 | Q5: 284 | R5: 192 | S5: 214 | T5: 256 | U5: 246 | V5: 245 | W5: 253 | X5: 242 | Y5: 229 | Z5: 258 | AA5: 261 | AB5: 246 | DT5: 1 | DU5: =IF(AND(D5=D4,D5=D3,D5=D2,D5=D1),ROW(1:1),IF(AND(D5=D4,D5=D3,D5=D2),ROW(1:1),IF(AND(D5=D4,D5=D3),ROW(1:1),IF(D5=D4,ROW(1:1),IF(D5>1,ROW(1:1),"-"))))) -> 1 | DV5: =IF(DX5=1,ROW(1:1),"-") -> 1 | DX5: 1 | EB5: 11 | ED5: =IF(DX5=1,DU5,IF(DX5="",DU5,"")) -> 1 | EE5: =IF(DX5=1,"("&DT5&")","("&DV5&")") -> (1) | EF5: (-)
A6: =IF(H6="x",DU6&EF6,DU6&EE6) -> 2(-) | B6: Kent Sundahl | C6: Carlskrona Hsc | D6: =IF(F6>0.5,(G6/F6),0) -> 220.8285714 | F6: =COUNT(N6:BO6) -> 35 | G6: =SUM(N6:BO6) -> 7729 | H6: x | I6: =COUNTIF(BQ6:DR6,2) -> 0 | J6: =COUNTIF(BQ6:DR6,-2) -> 0 | K6: =COUNTIF(BQ6:DR6,1) -> 0 | L6: =COUNTIF(BQ6:DR6,-1) -> 0 | M6: =IF(F6>0,(I6+K6)/(F6),0) -> 0 | N6: 211 | O6: 235 | P6: 224 | Q6: 222 | R6: 236 | S6: 272 | T6: 180 | U6: 219 | V6: 208 | W6: 218 | X6: 153 | Y6: 169 | Z6: 287 | AA6: 193 | AB6: 226 | AC6: 196 | AD6: 182 | AE6: 224 | AF6: 234 | AG6: 258 | AH6: 219 | AI6: 228 | AJ6: 231 | AK6: 157 | AL6: 250 | AM6: 258 | AN6: 269 | AO6: 258 | AP6: 299 | AQ6: 264 | AR6: 252 | AS6: 165 | AT6: 150 | AU6: 230 | AV6: 152 | DT6: 2 | DU6: =IF(AND(D6=D5,D6=D4,D6=D3,D6=D2),ROW(1:1),IF(AND(D6=D5,D6=D4,D6=D3),ROW(1:1),IF(AND(D6=D5,D6=D4),ROW(1:1),IF(D6=D5,ROW(1:1),IF(D6>1,ROW(2:2),"-"))))) -> 2 | DV6: 2 | DX6: 1 | EB6: 16 | ED6: 2 | EE6: (2) | EF6: (-)
A7: 3(-) | B7: Jean Fredriksson Väre | C7: Balders Hsk | D7: =IF(F7>0.5,(G7/F7),0) -> 200.8947368 | F7: =COUNT(N7:BO7) -> 38 | G7: =SUM(N7:BO7) -> 7634 | H7: x | I7: =COUNTIF(BQ7:DR7,2) -> 0 | J7: =COUNTIF(BQ7:DR7,-2) -> 0 | K7: =COUNTIF(BQ7:DR7,1) -> 0 | L7: =COUNTIF(BQ7:DR7,-1) -> 0 | M7: =IF(F7>0,(I7+K7)/(F7),0) -> 0 | N7: 202 | O7: 222 | P7: 192 | Q7: 215 | R7: 186 | S7: 248 | T7: 191 | U7: 206 | V7: 210 | W7: 222 | X7: 184 | Y7: 205 | Z7: 205 | AA7: 151 | AB7: 194 | AC7: 147 | AD7: 191 | AE7: 256 | AF7: 193 | AG7: 202 | AH7: 193 | AI7: 223 | AJ7: 244 | AK7: 192 | AL7: 187 | AM7: 189 | AN7: 211 | AO7: 182 | AP7: 216 | AQ7: 224 | AR7: 261 | AS7: 272 | AT7: 234 | AU7: 182 | AV7: 135 | AW7: 162 | AX7: 145 | AY7: 160 | DT7: 3 | DU7: =IF(AND(D7=D6,D7=D5,D7=D4,D7=D3),ROW(1:1),IF(AND(D7=D6,D7=D5,D7=D4),ROW(1:1),IF(AND(D7=D6,D7=D5),ROW(1:1),IF(D7=D6,ROW(2:2),IF(D7>1,ROW(3:3),"-"))))) -> 3 | DV7: 3 | DX7: 1 | EB7: 20 | ED7: 3 | EE7: (3) | EF7: (-)
A8: 4(-) | B8: Hathaichonlanee Phaengphui | C8: Växjö Hsk | D8: =IF(F8>0.5,(G8/F8),0) -> 193.2142857 | F8: =COUNT(N8:BO8) -> 14 | G8: =SUM(N8:BO8) -> 2705 | H8: x | I8: =COUNTIF(BQ8:DR8,2) -> 0 | J8: =COUNTIF(BQ8:DR8,-2) -> 0 | K8: =COUNTIF(BQ8:DR8,1) -> 0 | L8: =COUNTIF(BQ8:DR8,-1) -> 0 | M8: =IF(F8>0,(I8+K8)/(F8),0) -> 0 | N8: 206 | O8: 244 | P8: 175 | Q8: 200 | R8: 220 | S8: 226 | T8: 220 | U8: 177 | V8: 258 | W8: 158 | X8: 203 | Y8: 133 | Z8: 141 | AA8: 144 | DT8: 4 | DU8: =IF(AND(D8=D7,D8=D6,D8=D5),ROW(1:1),IF(AND(D8=D7,D8=D6),ROW(2:2),IF(D8=D7,ROW(3:3),IF(D8>1,ROW(4:4),"-")))) -> 4 | DV8: 4 | DX8: 1 | EB8: 4 | ED8: 4 | EE8: (4) | EF8: (-)
A9: 5(-) | B9: Matz Karlsson | C9: Korpen Åseda | D9: =IF(F9>0.5,(G9/F9),0) -> 187.85 | F9: =COUNT(N9:BO9) -> 40 | G9: =SUM(N9:BO9) -> 7514 | H9: x | I9: =COUNTIF(BQ9:DR9,2) -> 0 | J9: =COUNTIF(BQ9:DR9,-2) -> 0 | K9: =COUNTIF(BQ9:DR9,1) -> 0 | L9: =COUNTIF(BQ9:DR9,-1) -> 0 | M9: =IF(F9>0,(I9+K9)/(F9),0) -> 0 | N9: 222 | O9: 159 | P9: 160 | Q9: 164 | R9: 259 | S9: 257 | T9: 192 | U9: 200 | V9: 226 | W9: 158 | X9: 151 | Y9: 136 | Z9: 126 | AA9: 119 | AB9: 160 | AC9: 132 | AD9: 239 | AE9: 230 | AF9: 228 | AG9: 198 | AH9: 308 | AI9: 165 | AJ9: 216 | AK9: 185 | AL9: 202 | AM9: 246 | AN9: 208 | AO9: 215 | AP9: 213 | AQ9: 187 | AR9: 144 | AS9: 166 | AT9: 223 | AU9: 191 | AV9: 139 | AW9: 144 | AX9: 167 | AY9: 163 | AZ9: 137 | BA9: 179 | DT9: 5 | DU9: =IF(D9>1,ROW(5:5),"-") -> 5 | DV9: 5 | DX9: 1 | EB9: 1 | ED9: 5 | EE9: (5) | EF9: (-)
A10: 6(-) | B10: Kristian Jältsäter | C10: Vaxholm Hsk | D10: =IF(F10>0.5,(G10/F10),0) -> 184.6111111 | F10: =COUNT(N10:BO10) -> 36 | G10: =SUM(N10:BO10) -> 6646 | H10: x | I10: =COUNTIF(BQ10:DR10,2) -> 0 | J10: =COUNTIF(BQ10:DR10,-2) -> 0 | K10: =COUNTIF(BQ10:DR10,1) -> 0 | L10: =COUNTIF(BQ10:DR10,-1) -> 0 | M10: =IF(F10>0,(I10+K10)/(F10),0) -> 0 | N10: 208 | O10: 237 | P10: 209 | Q10: 139 | R10: 181 | S10: 233 | T10: 216 | U10: 198 | V10: 158 | W10: 103 | X10: 240 | Y10: 189 | Z10: 196 | AA10: 238 | AB10: 205 | AC10: 192 | AD10: 206 | AE10: 168 | AF10: 170 | AG10: 143 | AH10: 222 | AI10: 211 | AJ10: 144 | AK10: 200 | AL10: 267 | AM10: 222 | AN10: 209 | AO10: 157 | AP10: 174 | AQ10: 140 | AR10: 98 | AS10: 117 | AT10: 148 | AU10: 181 | AV10: 179 | AW10: 148 | DT10: 6 | DU10: =IF(D10=D9,ROW(5:5),IF(D10>1,ROW(6:6),"-")) -> 6 | DV10: 6 | DX10: 1 | EB10: 2 | ED10: 6 | EE10: (6) | EF10: (-)
A11: 7(-) | B11: Sandor Bodi | C11: Växjö Hsk | D11: =IF(F11>0.5,(G11/F11),0) -> 176.9666667 | F11: =COUNT(N11:BO11) -> 30 | G11: =SUM(N11:BO11) -> 5309 | H11: x | I11: =COUNTIF(BQ11:DR11,2) -> 0 | J11: =COUNTIF(BQ11:DR11,-2) -> 0 | K11: =COUNTIF(BQ11:DR11,1) -> 0 | L11: =COUNTIF(BQ11:DR11,-1) -> 0 | M11: =IF(F11>0,(I11+K11)/(F11),0) -> 0 | N11: 149 | O11: 166 | P11: 211 | Q11: 133 | R11: 153 | S11: 116 | T11: 216 | U11: 194 | V11: 240 | W11: 228 | X11: 165 | Y11: 212 | Z11: 196 | AA11: 182 | AB11: 209 | AC11: 183 | AD11: 161 | AE11: 130 | AF11: 171 | AG11: 108 | AH11: 221 | AI11: 159 | AJ11: 165 | AK11: 145 | AL11: 227 | AM11: 232 | AN11: 225 | AO11: 179 | AP11: 98 | AQ11: 135 | DT11: 7 | DU11: =IF(AND(D11=D10,D11=D9,D11=D8,D11=D7),ROW(3:3),IF(AND(D11=D10,D11=D9,D11=D8),ROW(4:4),IF(AND(D11=D10,D11=D9),ROW(5:5),IF(D11=D10,ROW(6:6),IF(D11>1,ROW(7:7),"-"))))) -> 7 | DV11: 7 | DX11: 1 | EB11: 5 | ED11: 7 | EE11: (7) | EF11: (-)
A12: 8(-) | B12: Malira Eriksson | C12: Balders Hsk | D12: =IF(F12>0.5,(G12/F12),0) -> 176.8461538 | F12: =COUNT(N12:BO12) -> 26 | G12: =SUM(N12:BO12) -> 4598 | H12: x | I12: =COUNTIF(BQ12:DR12,2) -> 0 | J12: =COUNTIF(BQ12:DR12,-2) -> 0 | K12: =COUNTIF(BQ12:DR12,1) -> 0 | L12: =COUNTIF(BQ12:DR12,-1) -> 0 | M12: =IF(F12>0,(I12+K12)/(F12),0) -> 0 | N12: 107 | O12: 157 | P12: 171 | Q12: 155 | R12: 240 | S12: 212 | T12: 124 | U12: 221 | V12: 186 | W12: 231 | X12: 198 | Y12: 141 | Z12: 168 | AA12: 197 | AB12: 220 | AC12: 268 | AD12: 236 | AE12: 152 | AF12: 120 | AG12: 146 | AH12: 175 | AI12: 190 | AJ12: 132 | AK12: 112 | AL12: 163 | AM12: 176 | DT12: 8 | DU12: 8 | DV12: 8 | DX12: 1 | EB12: 6 | ED12: 8 | EE12: (8) | EF12: (-)
A13: 9(-) | B13: Leo Andersson | C13: Carlskrona Hsc | D13: =IF(F13>0.5,(G13/F13),0) -> 175.5625 | F13: =COUNT(N13:BO13) -> 32 | G13: =SUM(N13:BO13) -> 5618 | H13: x | I13: =COUNTIF(BQ13:DR13,2) -> 0 | J13: =COUNTIF(BQ13:DR13,-2) -> 0 | K13: =COUNTIF(BQ13:DR13,1) -> 0 | L13: =COUNTIF(BQ13:DR13,-1) -> 0 | M13: =IF(F13>0,(I13+K13)/(F13),0) -> 0 | N13: 162 | O13: 165 | P13: 191 | Q13: 202 | R13: 188 | S13: 124 | T13: 120 | U13: 112 | V13: 215 | W13: 221 | X13: 234 | Y13: 136 | Z13: 145 | AA13: 139 | AB13: 203 | AC13: 163 | AD13: 195 | AE13: 196 | AF13: 216 | AG13: 175 | AH13: 117 | AI13: 204 | AJ13: 152 | AK13: 236 | AL13: 150 | AM13: 190 | AN13: 198 | AO13: 151 | AP13: 150 | AQ13: 199 | AR13: 158 | AS13: 211 | DT13: 9 | DU13: 9 | DV13: 9 | DX13: 1 | EB13: 8 | ED13: 9 | EE13: (9) | EF13: (-)
A14: 10(-) | B14: Mattias Olsson | C14: Dynapac Hsc | D14: =IF(F14>0.5,(G14/F14),0) -> 174.6 | F14: =COUNT(N14:BO14) -> 5 | G14: =SUM(N14:BO14) -> 873 | H14: x | I14: =COUNTIF(BQ14:DR14,2) -> 0 | J14: =COUNTIF(BQ14:DR14,-2) -> 0 | K14: =COUNTIF(BQ14:DR14,1) -> 0 | L14: =COUNTIF(BQ14:DR14,-1) -> 0 | M14: =IF(F14>0,(I14+K14)/(F14),0) -> 0 | N14: 113 | O14: 161 | P14: 142 | Q14: 212 | R14: 245 | DT14: 10 | DU14: 10 | DV14: 10 | DX14: 1 | EB14: 12 | ED14: 10 | EE14: (10) | EF14: (-)
A15: 11(-) | B15: Ingvar Eriksson | C15: Carlskrona Hsc | D15: =IF(F15>0.5,(G15/F15),0) -> 173.8965517 | F15: =COUNT(N15:BO15) -> 29 | G15: =SUM(N15:BO15) -> 5043 | H15: x | I15: =COUNTIF(BQ15:DR15,2) -> 0 | J15: =COUNTIF(BQ15:DR15,-2) -> 0 | K15: =COUNTIF(BQ15:DR15,1) -> 0 | L15: =COUNTIF(BQ15:DR15,-1) -> 0 | M15: =IF(F15>0,(I15+K15)/(F15),0) -> 0 | N15: 166 | O15: 208 | P15: 151 | Q15: 182 | R15: 172 | S15: 181 | T15: 127 | U15: 191 | V15: 170 | W15: 173 | X15: 191 | Y15: 205 | Z15: 150 | AA15: 234 | AB15: 230 | AC15: 178 | AD15: 145 | AE15: 173 | AF15: 207 | AG15: 184 | AH15: 125 | AI15: 160 | AJ15: 134 | AK15: 219 | AL15: 206 | AM15: 109 | AN15: 156 | AO15: 132 | AP15: 184 | DT15: 11 | DU15: 11 | DV15: 11 | DX15: 1 | EB15: 15 | ED15: 11 | EE15: (11) | EF15: (-)
A16: 12(-) | B16: Sandra Widlund | C16: Växjö Hsk | D16: =IF(F16>0.5,(G16/F16),0) -> 163.0833333 | F16: =COUNT(N16:BO16) -> 12 | G16: =SUM(N16:BO16) -> 1957 | H16: x | I16: =COUNTIF(BQ16:DR16,2) -> 0 | J16: =COUNTIF(BQ16:DR16,-2) -> 0 | K16: =COUNTIF(BQ16:DR16,1) -> 0 | L16: =COUNTIF(BQ16:DR16,-1) -> 0 | M16: =IF(F16>0,(I16+K16)/(F16),0) -> 0 | N16: 187 | O16: 178 | P16: 168 | Q16: 154 | R16: 242 | S16: 124 | T16: 179 | U16: 138 | V16: 134 | W16: 201 | X16: 103 | Y16: 149 | DT16: 12 | DU16: 12 | DV16: 12 | DX16: 1 | EB16: 21 | ED16: 12 | EE16: (12) | EF16: (-)
A17: 13(-) | B17: Gert Karlsson | C17: Korpen Åseda | D17: =IF(F17>0.5,(G17/F17),0) -> 159 | F17: =COUNT(N17:BO17) -> 33 | G17: =SUM(N17:BO17) -> 5247 | H17: x | I17: =COUNTIF(BQ17:DR17,2) -> 0 | J17: =COUNTIF(BQ17:DR17,-2) -> 0 | K17: =COUNTIF(BQ17:DR17,1) -> 0 | L17: =COUNTIF(BQ17:DR17,-1) -> 0 | M17: =IF(F17>0,(I17+K17)/(F17),0) -> 0 | N17: 132 | O17: 126 | P17: 113 | Q17: 141 | R17: 132 | S17: 130 | T17: 173 | U17: 98 | V17: 119 | W17: 128 | X17: 121 | Y17: 159 | Z17: 165 | AA17: 164 | AB17: 121 | AC17: 231 | AD17: 199 | AE17: 212 | AF17: 193 | AG17: 189 | AH17: 183 | AI17: 163 | AJ17: 246 | AK17: 155 | AL17: 158 | AM17: 217 | AN17: 140 | AO17: 216 | AP17: 133 | AQ17: 146 | AR17: 129 | AS17: 156 | AT17: 159 | DT17: 13 | DU17: 13 | DV17: 13 | DX17: 1 | EB17: 3 | ED17: 13 | EE17: (13) | EF17: (-)
A18: 14(-) | B18: Joel Sundahl | C18: Carlskrona Hsc | D18: =IF(F18>0.5,(G18/F18),0) -> 157.0333333 | F18: =COUNT(N18:BO18) -> 30 | G18: =SUM(N18:BO18) -> 4711 | H18: x | I18: =COUNTIF(BQ18:DR18,2) -> 0 | J18: =COUNTIF(BQ18:DR18,-2) -> 0 | K18: =COUNTIF(BQ18:DR18,1) -> 0 | L18: =COUNTIF(BQ18:DR18,-1) -> 0 | M18: =IF(F18>0,(I18+K18)/(F18),0) -> 0 | N18: 132 | O18: 174 | P18: 125 | Q18: 91 | R18: 106 | S18: 138 | T18: 236 | U18: 98 | V18: 206 | W18: 208 | X18: 228 | Y18: 143 | Z18: 125 | AA18: 152 | AB18: 93 | AC18: 200 | AD18: 169 | AE18: 240 | AF18: 196 | AG18: 157 | AH18: 175 | AI18: 128 | AJ18: 224 | AK18: 158 | AL18: 157 | AM18: 139 | AN18: 160 | AO18: 131 | AP18: 93 | AQ18: 129 | DT18: 14 | DU18: 14 | DV18: 14 | DX18: 1 | EB18: 7 | ED18: 14 | EE18: (14) | EF18: (-)
A19: 15(-) | B19: Johan Johansson | C19: Tingsryd Hsc | D19: =IF(F19>0.5,(G19/F19),0) -> 153.8 | F19: =COUNT(N19:BO19) -> 20 | G19: =SUM(N19:BO19) -> 3076 | H19: x | I19: =COUNTIF(BQ19:DR19,2) -> 0 | J19: =COUNTIF(BQ19:DR19,-2) -> 0 | K19: =COUNTIF(BQ19:DR19,1) -> 0 | L19: =COUNTIF(BQ19:DR19,-1) -> 0 | M19: =IF(F19>0,(I19+K19)/(F19),0) -> 0 | N19: 97 | O19: 200 | P19: 125 | Q19: 125 | R19: 158 | S19: 161 | T19: 208 | U19: 161 | V19: 142 | W19: 145 | X19: 153 | Y19: 185 | Z19: 195 | AA19: 182 | AB19: 149 | AC19: 155 | AD19: 155 | AE19: 161 | AF19: 89 | AG19: 130 | DT19: 15 | DU19: 15 | DV19: 15 | DX19: 1 | EB19: 17 | ED19: 15 | EE19: (15) | EF19: (-)
A20: 16(-) | B20: Peter Olsson | C20: Dynapac Hsc | D20: =IF(F20>0.5,(G20/F20),0) -> 150.8 | F20: =COUNT(N20:BO20) -> 15 | G20: =SUM(N20:BO20) -> 2262 | H20: x | I20: =COUNTIF(BQ20:DR20,2) -> 0 | J20: =COUNTIF(BQ20:DR20,-2) -> 0 | K20: =COUNTIF(BQ20:DR20,1) -> 0 | L20: =COUNTIF(BQ20:DR20,-1) -> 0 | M20: =IF(F20>0,(I20+K20)/(F20),0) -> 0 | N20: 138 | O20: 190 | P20: 146 | Q20: 185 | R20: 181 | S20: 191 | T20: 219 | U20: 249 | V20: 162 | W20: 78 | X20: 114 | Y20: 103 | Z20: 63 | AA20: 94 | AB20: 149 | DT20: 16 | DU20: 16 | DV20: 16 | DX20: 1 | EB20: 18 | ED20: 16 | EE20: (16) | EF20: (-)
A21: 17(-) | B21: Inge Skoglöw | C21: Jämjö Hsk | D21: =IF(F21>0.5,(G21/F21),0) -> 146.4285714 | F21: =COUNT(N21:BO21) -> 21 | G21: =SUM(N21:BO21) -> 3075 | H21: x | I21: =COUNTIF(BQ21:DR21,2) -> 0 | J21: =COUNTIF(BQ21:DR21,-2) -> 0 | K21: =COUNTIF(BQ21:DR21,1) -> 0 | L21: =COUNTIF(BQ21:DR21,-1) -> 0 | M21: =IF(F21>0,(I21+K21)/(F21),0) -> 0 | N21: 140 | O21: 103 | P21: 149 | Q21: 168 | R21: 118 | S21: 131 | T21: 99 | U21: 108 | V21: 113 | W21: 178 | X21: 155 | Y21: 96 | Z21: 148 | AA21: 177 | AB21: 214 | AC21: 154 | AD21: 157 | AE21: 221 | AF21: 167 | AG21: 124 | AH21: 155 | DT21: 17 | DU21: 17 | DV21: 17 | DX21: 1 | EB21: 24 | ED21: 17 | EE21: (17) | EF21: (-)
A22: 18(-) | B22: Martin Anjou | C22: Balders Hsk | D22: =IF(F22>0.5,(G22/F22),0) -> 139.8 | F22: =COUNT(N22:BO22) -> 20 | G22: =SUM(N22:BO22) -> 2796 | H22: x | I22: =COUNTIF(BQ22:DR22,2) -> 0 | J22: =COUNTIF(BQ22:DR22,-2) -> 0 | K22: =COUNTIF(BQ22:DR22,1) -> 0 | L22: =COUNTIF(BQ22:DR22,-1) -> 0 | M22: =IF(F22>0,(I22+K22)/(F22),0) -> 0 | N22: 165 | O22: 133 | P22: 127 | Q22: 263 | R22: 131 | S22: 64 | T22: 133 | U22: 88 | V22: 174 | W22: 143 | X22: 203 | Y22: 165 | Z22: 129 | AA22: 124 | AB22: 117 | AC22: 165 | AD22: 97 | AE22: 108 | AF22: 180 | AG22: 87 | DT22: 18 | DU22: 18 | DV22: 18 | DX22: 1 | EB22: 9 | ED22: 18 | EE22: (18) | EF22: (-)
A23: 19(-) | B23: Marcus Petersson | C23: Balders Hsk | D23: =IF(F23>0.5,(G23/F23),0) -> 137.9666667 | F23: =COUNT(N23:BO23) -> 30 | G23: =SUM(N23:BO23) -> 4139 | H23: x | I23: =COUNTIF(BQ23:DR23,2) -> 0 | J23: =COUNTIF(BQ23:DR23,-2) -> 0 | K23: =COUNTIF(BQ23:DR23,1) -> 0 | L23: =COUNTIF(BQ23:DR23,-1) -> 0 | M23: =IF(F23>0,(I23+K23)/(F23),0) -> 0 | N23: 147 | O23: 111 | P23: 98 | Q23: 175 | R23: 107 | S23: 137 | T23: 199 | U23: 176 | V23: 149 | W23: 130 | X23: 206 | Y23: 130 | Z23: 212 | AA23: 60 | AB23: 98 | AC23: 185 | AD23: 150 | AE23: 126 | AF23: 115 | AG23: 103 | AH23: 121 | AI23: 186 | AJ23: 108 | AK23: 122 | AL23: 134 | AM23: 90 | AN23: 141 | AO23: 147 | AP23: 106 | AQ23: 170 | DT23: 19 | DU23: 19 | DV23: 19 | DX23: 1 | EB23: 10 | ED23: 19 | EE23: (19) | EF23: (-)
A24: 20(-) | B24: Armin Sisic | C24: Värends Hsk | D24: =IF(F24>0.5,(G24/F24),0) -> 137.3333333 | F24: =COUNT(N24:BO24) -> 3 | G24: =SUM(N24:BO24) -> 412 | H24: x | I24: =COUNTIF(BQ24:DR24,2) -> 0 | J24: =COUNTIF(BQ24:DR24,-2) -> 0 | K24: =COUNTIF(BQ24:DR24,1) -> 0 | L24: =COUNTIF(BQ24:DR24,-1) -> 0 | M24: =IF(F24>0,(I24+K24)/(F24),0) -> 0 | N24: 137 | O24: 129 | P24: 146 | DT24: 20 | DU24: 20 | DV24: 20 | DX24: 1 | EB24: 22 | ED24: 20 | EE24: (20) | EF24: (-)
A25: 21(-) | B25: Lisbeth Nygaard-Karlsson | C25: Tingsryd Hsc | D25: =IF(F25>0.5,(G25/F25),0) -> 133.8181818 | F25: =COUNT(N25:BO25) -> 11 | G25: =SUM(N25:BO25) -> 1472 | H25: x | I25: =COUNTIF(BQ25:DR25,2) -> 0 | J25: =COUNTIF(BQ25:DR25,-2) -> 0 | K25: =COUNTIF(BQ25:DR25,1) -> 0 | L25: =COUNTIF(BQ25:DR25,-1) -> 0 | M25: =IF(F25>0,(I25+K25)/(F25),0) -> 0 | N25: 134 | O25: 162 | P25: 139 | Q25: 136 | R25: 152 | S25: 119 | T25: 184 | U25: 141 | V25: 79 | W25: 126 | X25: 100 | DT25: 22 | DU25: 21 | DV25: 21 | DX25: 1 | EB25: 14 | ED25: 21 | EE25: (22) | EF25: (-)
A26: 22(-) | B26: Magnus Israelsson | C26: Sibbamåla | D26: =IF(F26>0.5,(G26/F26),0) -> 133.5454545 | F26: =COUNT(N26:BO26) -> 22 | G26: =SUM(N26:BO26) -> 2938 | H26: x | I26: =COUNTIF(BQ26:DR26,2) -> 0 | J26: =COUNTIF(BQ26:DR26,-2) -> 0 | K26: =COUNTIF(BQ26:DR26,1) -> 0 | L26: =COUNTIF(BQ26:DR26,-1) -> 0 | M26: =IF(F26>0,(I26+K26)/(F26),0) -> 0 | N26: 98 | O26: 92 | P26: 122 | Q26: 186 | R26: 146 | S26: 219 | T26: 185 | U26: 109 | V26: 118 | W26: 110 | X26: 164 | Y26: 162 | Z26: 96 | AA26: 142 | AB26: 152 | AC26: 90 | AD26: 104 | AE26: 107 | AF26: 113 | AG26: 172 | AH26: 110 | AI26: 141 | DT26: 23 | DU26: 22 | DV26: 22 | DX26: 1 | EB26: 13 | ED26: 22 | EE26: (23) | EF26: (-)
A27: 23(-) | B27: Björn Landberg | C27: Vaxholm Hsk | D27: =IF(F27>0.5,(G27/F27),0) -> 131.7142857 | F27: =COUNT(N27:BO27) -> 35 | G27: =SUM(N27:BO27) -> 4610 | H27: x | I27: =COUNTIF(BQ27:DR27,2) -> 0 | J27: =COUNTIF(BQ27:DR27,-2) -> 0 | K27: =COUNTIF(BQ27:DR27,1) -> 0 | L27: =COUNTIF(BQ27:DR27,-1) -> 0 | M27: =IF(F27>0,(I27+K27)/(F27),0) -> 0 | N27: 91 | O27: 107 | P27: 75 | Q27: 106 | R27: 48 | S27: 30 | T27: 88 | U27: 121 | V27: 135 | W27: 148 | X27: 158 | Y27: 142 | Z27: 164 | AA27: 187 | AB27: 121 | AC27: 134 | AD27: 141 | AE27: 181 | AF27: 165 | AG27: 100 | AH27: 124 | AI27: 126 | AJ27: 109 | AK27: 188 | AL27: 165 | AM27: 80 | AN27: 138 | AO27: 69 | AP27: 80 | AQ27: 191 | AR27: 198 | AS27: 193 | AT27: 165 | AU27: 149 | AV27: 193 | DT27: 25 | DU27: 23 | DV27: 23 | DX27: 1 | EB27: 19 | ED27: 23 | EE27: (25) | EF27: (-)
A28: 24(-) | B28: Erik Smiding | C28: Vaxholm Hsk | D28: =IF(F28>0.5,(G28/F28),0) -> 129.1428571 | F28: =COUNT(N28:BO28) -> 7 | G28: =SUM(N28:BO28) -> 904 | H28: x | I28: =COUNTIF(BQ28:DR28,2) -> 0 | J28: =COUNTIF(BQ28:DR28,-2) -> 0 | K28: =COUNTIF(BQ28:DR28,1) -> 0 | L28: =COUNTIF(BQ28:DR28,-1) -> 0 | M28: =IF(F28>0,(I28+K28)/(F28),0) -> 0 | N28: 139 | O28: 117 | P28: 160 | Q28: 95 | R28: 172 | S28: 112 | T28: 109 | DT28: 21 | DU28: =IF(AND(D28=D27,D28=D26,D28=D25,D28=D24),ROW(20:20),IF(AND(D28=D27,D28=D26,D28=D25),ROW(21:21),IF(AND(D28=D27,D28=D26),ROW(22:22),IF(D28=D27,ROW(23:23),IF(D28>1,ROW(24:24),"-"))))) -> 24 | DV28: =IF(DX28=1,ROW(24:24),"-") -> 24 | DX28: 1 | EB28: 28 | ED28: =IF(DX28=1,DU28,IF(DX28="",DU28,"")) -> 24 | EE28: =IF(DX28=1,"("&DT28&")","("&DV28&")") -> (21) | EF28: (-)
A29: 25(-) | B29: Jimmy Carlsson | C29: Vaxholm Hsk | D29: =IF(F29>0.5,(G29/F29),0) -> 127.7777778 | F29: =COUNT(N29:BO29) -> 9 | G29: =SUM(N29:BO29) -> 1150 | H29: x | I29: =COUNTIF(BQ29:DR29,2) -> 0 | J29: =COUNTIF(BQ29:DR29,-2) -> 0 | K29: =COUNTIF(BQ29:DR29,1) -> 0 | L29: =COUNTIF(BQ29:DR29,-1) -> 0 | M29: =IF(F29>0,(I29+K29)/(F29),0) -> 0 | N29: 155 | O29: 106 | P29: 127 | Q29: 141 | R29: 121 | S29: 71 | T29: 139 | U29: 137 | V29: 153 | DT29: 26 | DU29: =IF(AND(D29=D28,D29=D27,D29=D26,D29=D25),ROW(21:21),IF(AND(D29=D28,D29=D27,D29=D26),ROW(22:22),IF(AND(D29=D28,D29=D27),ROW(23:23),IF(D29=D28,ROW(24:24),IF(D29>1,ROW(25:25),"-"))))) -> 25 | DV29: =IF(DX29=1,ROW(25:25),"-") -> 25 | DX29: 1 | EB29: 23 | ED29: =IF(DX29=1,DU29,IF(DX29="",DU29,"")) -> 25 | EE29: =IF(DX29=1,"("&DT29&")","("&DV29&")") -> (26) | EF29: (-)
A30: 26(-) | B30: Mattias Gneupel | C30: Sibbamåla | D30: =IF(F30>0.5,(G30/F30),0) -> 127.483871 | F30: =COUNT(N30:BO30) -> 31 | G30: =SUM(N30:BO30) -> 3952 | H30: x | I30: =COUNTIF(BQ30:DR30,2) -> 0 | J30: =COUNTIF(BQ30:DR30,-2) -> 0 | K30: =COUNTIF(BQ30:DR30,1) -> 0 | L30: =COUNTIF(BQ30:DR30,-1) -> 0 | M30: =IF(F30>0,(I30+K30)/(F30),0) -> 0 | N30: 91 | O30: 114 | P30: 134 | Q30: 146 | R30: 181 | S30: 108 | T30: 152 | U30: 125 | V30: 111 | W30: 152 | X30: 139 | Y30: 82 | Z30: 152 | AA30: 126 | AB30: 90 | AC30: 189 | AD30: 92 | AE30: 107 | AF30: 114 | AG30: 118 | AH30: 125 | AI30: 146 | AJ30: 119 | AK30: 122 | AL30: 107 | AM30: 123 | AN30: 113 | AO30: 125 | AP30: 139 | AQ30: 126 | AR30: 184 | DT30: 27 | DU30: =IF(AND(D30=D29,D30=D28,D30=D27,D30=D26),ROW(22:22),IF(AND(D30=D29,D30=D28,D30=D27),ROW(23:23),IF(AND(D30=D29,D30=D28),ROW(24:24),IF(D30=D29,ROW(25:25),IF(D30>1,ROW(26:26),"-"))))) -> 26 | DV30: =IF(DX30=1,ROW(26:26),"-") -> 26 | DX30: 1 | EB30: 25 | ED30: =IF(DX30=1,DU30,IF(DX30="",DU30,"")) -> 26 | EE30: =IF(DX30=1,"("&DT30&")","("&DV30&")") -> (27) | EF30: (-)
A31: 27(-) | B31: Maire Johansson | C31: Växjö Hsk | D31: =IF(F31>0.5,(G31/F31),0) -> 126.0909091 | F31: =COUNT(N31:BO31) -> 11 | G31: =SUM(N31:BO31) -> 1387 | H31: x | I31: =COUNTIF(BQ31:DR31,2) -> 0 | J31: =COUNTIF(BQ31:DR31,-2) -> 0 | K31: =COUNTIF(BQ31:DR31,1) -> 0 | L31: =COUNTIF(BQ31:DR31,-1) -> 0 | M31: =IF(F31>0,(I31+K31)/(F31),0) -> 0 | N31: 136 | O31: 95 | P31: 126 | Q31: 135 | R31: 149 | S31: 106 | T31: 142 | U31: 193 | V31: 110 | W31: 99 | X31: 96 | DT31: 28 | DU31: =IF(AND(D31=D30,D31=D29,D31=D28,D31=D27),ROW(23:23),IF(AND(D31=D30,D31=D29,D31=D28),ROW(24:24),IF(AND(D31=D30,D31=D29),ROW(25:25),IF(D31=D30,ROW(26:26),IF(D31>1,ROW(27:27),"-"))))) -> 27 | DV31: =IF(DX31=1,ROW(27:27),"-") -> 27 | DX31: 1 | EB31: 26 | ED31: =IF(DX31=1,DU31,IF(DX31="",DU31,"")) -> 27 | EE31: =IF(DX31=1,"("&DT31&")","("&DV31&")") -> (28) | EF31: (-)
A32: 28(-) | B32: Björn Gabrielsson | C32: Vaxholm Hsk | D32: =IF(F32>0.5,(G32/F32),0) -> 125.7142857 | F32: =COUNT(N32:BO32) -> 35 | G32: =SUM(N32:BO32) -> 4400 | H32: x | I32: =COUNTIF(BQ32:DR32,2) -> 0 | J32: =COUNTIF(BQ32:DR32,-2) -> 0 | K32: =COUNTIF(BQ32:DR32,1) -> 0 | L32: =COUNTIF(BQ32:DR32,-1) -> 0 | M32: =IF(F32>0,(I32+K32)/(F32),0) -> 0 | N32: 118 | O32: 117 | P32: 94 | Q32: 139 | R32: 104 | S32: 124 | T32: 185 | U32: 121 | V32: 132 | W32: 87 | X32: 75 | Y32: 180 | Z32: 142 | AA32: 215 | AB32: 114 | AC32: 101 | AD32: 135 | AE32: 91 | AF32: 138 | AG32: 163 | AH32: 132 | AI32: 139 | AJ32: 143 | AK32: 171 | AL32: 121 | AM32: 155 | AN32: 115 | AO32: 145 | AP32: 149 | AQ32: 120 | AR32: 67 | AS32: 111 | AT32: 118 | AU32: 62 | AV32: 77 | DT32: 24 | DU32: =IF(AND(D32=D31,D32=D30,D32=D29,D32=D28),ROW(24:24),IF(AND(D32=D31,D32=D30,D32=D29),ROW(25:25),IF(AND(D32=D31,D32=D30),ROW(26:26),IF(D32=D31,ROW(27:27),IF(D32>1,ROW(28:28),"-"))))) -> 28 | DV32: =IF(DX32=1,ROW(28:28),"-") -> 28 | DX32: 1 | EB32: 27 | ED32: =IF(DX32=1,DU32,IF(DX32="",DU32,"")) -> 28 | EE32: =IF(DX32=1,"("&DT32&")","("&DV32&")") -> (24) | EF32: (-)
A33: 29(-) | B33: Hans Johansson | C33: Tingsryd Hsc | D33: =IF(F33>0.5,(G33/F33),0) -> 124.6086957 | F33: =COUNT(N33:BO33) -> 23 | G33: =SUM(N33:BO33) -> 2866 | H33: x | I33: =COUNTIF(BQ33:DR33,2) -> 0 | J33: =COUNTIF(BQ33:DR33,-2) -> 0 | K33: =COUNTIF(BQ33:DR33,1) -> 0 | L33: =COUNTIF(BQ33:DR33,-1) -> 0 | M33: =IF(F33>0,(I33+K33)/(F33),0) -> 0 | N33: 102 | O33: 132 | P33: 201 | Q33: 156 | R33: 98 | S33: 148 | T33: 95 | U33: 147 | V33: 105 | W33: 119 | X33: 130 | Y33: 104 | Z33: 134 | AA33: 131 | AB33: 122 | AC33: 134 | AD33: 108 | AE33: 100 | AF33: 134 | AG33: 111 | AH33: 115 | AI33: 108 | AJ33: 132 | DT33: 29 | DU33: 29 | DV33: 29 | DX33: 1 | EB33: 29 | ED33: 29 | EE33: (29) | EF33: (-)
A34: 30(-) | B34: Christer Lööv | C34: Värends Hsk | D34: =IF(F34>0.5,(G34/F34),0) -> 123.8 | F34: =COUNT(N34:BO34) -> 15 | G34: =SUM(N34:BO34) -> 1857 | H34: x | I34: =COUNTIF(BQ34:DR34,2) -> 0 | J34: =COUNTIF(BQ34:DR34,-2) -> 0 | K34: =COUNTIF(BQ34:DR34,1) -> 0 | L34: =COUNTIF(BQ34:DR34,-1) -> 0 | M34: =IF(F34>0,(I34+K34)/(F34),0) -> 0 | N34: 158 | O34: 136 | P34: 79 | Q34: 138 | R34: 123 | S34: 119 | T34: 118 | U34: 149 | V34: 126 | W34: 92 | X34: 143 | Y34: 95 | Z34: 99 | AA34: 128 | AB34: 154 | DT34: 30 | DU34: 30 | DV34: 30 | DX34: 1 | EB34: 30 | ED34: 30 | EE34: (30) | EF34: (-)
A35: 31(-) | B35: Berndt Pettersson | C35: Lanternan | D35: =IF(F35>0.5,(G35/F35),0) -> 123.7058824 | F35: =COUNT(N35:BO35) -> 17 | G35: =SUM(N35:BO35) -> 2103 | H35: x | I35: =COUNTIF(BQ35:DR35,2) -> 0 | J35: =COUNTIF(BQ35:DR35,-2) -> 0 | K35: =COUNTIF(BQ35:DR35,1) -> 0 | L35: =COUNTIF(BQ35:DR35,-1) -> 0 | M35: =IF(F35>0,(I35+K35)/(F35),0) -> 0 | N35: 192 | O35: 108 | P35: 183 | Q35: 52 | R35: 195 | S35: 146 | T35: 94 | U35: 155 | V35: 154 | W35: 131 | X35: 117 | Y35: 155 | Z35: 98 | AA35: 79 | AB35: 72 | AC35: 94 | AD35: 78 | DT35: 31 | DU35: 31 | DV35: 31 | DX35: 1 | EB35: 31 | ED35: 31 | EE35: (31) | EF35: (-)
A36: 32(-) | B36: Kerstin Svensson | C36: Växjö Hsk | D36: =IF(F36>0.5,(G36/F36),0) -> 122.4285714 | F36: =COUNT(N36:BO36) -> 14 | G36: =SUM(N36:BO36) -> 1714 | H36: x | I36: =COUNTIF(BQ36:DR36,2) -> 0 | J36: =COUNTIF(BQ36:DR36,-2) -> 0 | K36: =COUNTIF(BQ36:DR36,1) -> 0 | L36: =COUNTIF(BQ36:DR36,-1) -> 0 | M36: =IF(F36>0,(I36+K36)/(F36),0) -> 0 | N36: 109 | O36: 65 | P36: 99 | Q36: 141 | R36: 137 | S36: 128 | T36: 149 | U36: 129 | V36: 152 | W36: 128 | X36: 151 | Y36: 144 | Z36: 60 | AA36: 122 | DT36: 32 | DU36: 32 | DV36: 32 | DX36: 1 | EB36: 32 | ED36: 32 | EE36: (32) | EF36: (-)
A37: 33(-) | B37: Sebastian Israelsson | C37: Sibbamåla | D37: =IF(F37>0.5,(G37/F37),0) -> 121.0434783 | F37: =COUNT(N37:BO37) -> 23 | G37: =SUM(N37:BO37) -> 2784 | H37: x | I37: =COUNTIF(BQ37:DR37,2) -> 0 | J37: =COUNTIF(BQ37:DR37,-2) -> 0 | K37: =COUNTIF(BQ37:DR37,1) -> 0 | L37: =COUNTIF(BQ37:DR37,-1) -> 0 | M37: =IF(F37>0,(I37+K37)/(F37),0) -> 0 | N37: 111 | O37: 135 | P37: 101 | Q37: 81 | R37: 81 | S37: 81 | T37: 135 | U37: 131 | V37: 155 | W37: 161 | X37: 134 | Y37: 149 | Z37: 147 | AA37: 144 | AB37: 159 | AC37: 73 | AD37: 127 | AE37: 59 | AF37: 141 | AG37: 125 | AH37: 121 | AI37: 152 | AJ37: 81 | DT37: 33 | DU37: 33 | DV37: =IF(DX37=1,ROW(33:33),"-") -> 33 | DX37: 1 | EB37: 33 | ED37: =IF(DX37=1,DU37,IF(DX37="",DU37,"")) -> 33 | EE37: =IF(DX37=1,"("&DT37&")","("&DV37&")") -> (33) | EF37: (-)
A38: 34(-) | B38: Torgny Rågfeldt | C38: Balders Hsk | D38: =IF(F38>0.5,(G38/F38),0) -> 121 | F38: =COUNT(N38:BO38) -> 19 | G38: =SUM(N38:BO38) -> 2299 | H38: x | I38: =COUNTIF(BQ38:DR38,2) -> 0 | J38: =COUNTIF(BQ38:DR38,-2) -> 0 | K38: =COUNTIF(BQ38:DR38,1) -> 0 | L38: =COUNTIF(BQ38:DR38,-1) -> 0 | M38: =IF(F38>0,(I38+K38)/(F38),0) -> 0 | N38: 143 | O38: 152 | P38: 106 | Q38: 156 | R38: 107 | S38: 64 | T38: 128 | U38: 63 | V38: 134 | W38: 150 | X38: 118 | Y38: 205 | Z38: 193 | AA38: 66 | AB38: 66 | AC38: 123 | AD38: 76 | AE38: 104 | AF38: 145 | DT38: 34 | DU38: 34 | DV38: 34 | DX38: 1 | EB38: 34 | ED38: 34 | EE38: (34) | EF38: (-)
A39: 35(-) | B39: Roy Dahlén | C39: Dynapac Hsc | D39: =IF(F39>0.5,(G39/F39),0) -> 120.3333333 | F39: =COUNT(N39:BO39) -> 3 | G39: =SUM(N39:BO39) -> 361 | H39: x | I39: =COUNTIF(BQ39:DR39,2) -> 0 | J39: =COUNTIF(BQ39:DR39,-2) -> 0 | K39: =COUNTIF(BQ39:DR39,1) -> 0 | L39: =COUNTIF(BQ39:DR39,-1) -> 0 | M39: =IF(F39>0,(I39+K39)/(F39),0) -> 0 | N39: 132 | O39: 109 | P39: 120 | DT39: 35 | DU39: 35 | DV39: 35 | DX39: 1 | EB39: 35 | ED39: 35 | EE39: (35) | EF39: (-)
A40: 36(-) | B40: Jonny Åberg | C40: Balders Hsk | D40: =IF(F40>0.5,(G40/F40),0) -> 119.5714286 | F40: =COUNT(N40:BO40) -> 21 | G40: =SUM(N40:BO40) -> 2511 | H40: x | I40: =COUNTIF(BQ40:DR40,2) -> 0 | J40: =COUNTIF(BQ40:DR40,-2) -> 0 | K40: =COUNTIF(BQ40:DR40,1) -> 0 | L40: =COUNTIF(BQ40:DR40,-1) -> 0 | M40: =IF(F40>0,(I40+K40)/(F40),0) -> 0 | N40: 136 | O40: 131 | P40: 114 | Q40: 77 | R40: 74 | S40: 114 | T40: 81 | U40: 169 | V40: 113 | W40: 123 | X40: 89 | Y40: 121 | Z40: 114 | AA40: 114 | AB40: 140 | AC40: 95 | AD40: 148 | AE40: 158 | AF40: 125 | AG40: 147 | AH40: 128 | DT40: 37 | DU40: 36 | DV40: 36 | DX40: 1 | EB40: 36 | ED40: 36 | EE40: (37) | EF40: (-)
A41: 37(-) | B41: Natalie Sundahl | C41: Carlskrona Hsc | D41: =IF(F41>0.5,(G41/F41),0) -> 119.5 | F41: =COUNT(N41:BO41) -> 2 | G41: =SUM(N41:BO41) -> 239 | H41: x | I41: =COUNTIF(BQ41:DR41,2) -> 0 | J41: =COUNTIF(BQ41:DR41,-2) -> 0 | K41: =COUNTIF(BQ41:DR41,1) -> 0 | L41: =COUNTIF(BQ41:DR41,-1) -> 0 | M41: =IF(F41>0,(I41+K41)/(F41),0) -> 0 | N41: 113 | O41: 126 | DT41: 38 | DU41: 37 | DV41: 37 | DX41: 1 | EB41: 37 | ED41: 37 | EE41: (38) | EF41: (-)
A42: 38(-) | B42: Gilbert Pettersson | C42: Lanternan | D42: =IF(F42>0.5,(G42/F42),0) -> 119.2272727 | F42: =COUNT(N42:BO42) -> 22 | G42: =SUM(N42:BO42) -> 2623 | H42: x | I42: =COUNTIF(BQ42:DR42,2) -> 0 | J42: =COUNTIF(BQ42:DR42,-2) -> 0 | K42: =COUNTIF(BQ42:DR42,1) -> 0 | L42: =COUNTIF(BQ42:DR42,-1) -> 0 | M42: =IF(F42>0,(I42+K42)/(F42),0) -> 0 | N42: 105 | O42: 99 | P42: 134 | Q42: 82 | R42: 126 | S42: 77 | T42: 129 | U42: 117 | V42: 100 | W42: 120 | X42: 127 | Y42: 138 | Z42: 107 | AA42: 142 | AB42: 176 | AC42: 153 | AD42: 80 | AE42: 123 | AF42: 103 | AG42: 136 | AH42: 151 | AI42: 98 | DT42: 39 | DU42: 38 | DV42: 38 | DX42: 1 | EB42: 38 | ED42: 38 | EE42: (39) | EF42: (-)
A43: 39(-) | B43: Julia Anjou | C43: Balders Hsk | D43: =IF(F43>0.5,(G43/F43),0) -> 118.9375 | F43: =COUNT(N43:BO43) -> 32 | G43: =SUM(N43:BO43) -> 3806 | H43: x | I43: =COUNTIF(BQ43:DR43,2) -> 0 | J43: =COUNTIF(BQ43:DR43,-2) -> 0 | K43: =COUNTIF(BQ43:DR43,1) -> 0 | L43: =COUNTIF(BQ43:DR43,-1) -> 0 | M43: =IF(F43>0,(I43+K43)/(F43),0) -> 0 | N43: 135 | O43: 132 | P43: 165 | Q43: 126 | R43: 70 | S43: 157 | T43: 119 | U43: 80 | V43: 135 | W43: 124 | X43: 135 | Y43: 135 | Z43: 145 | AA43: 125 | AB43: 116 | AC43: 132 | AD43: 148 | AE43: 135 | AF43: 67 | AG43: 85 | AH43: 118 | AI43: 180 | AJ43: 109 | AK43: 100 | AL43: 115 | AM43: 88 | AN43: 98 | AO43: 138 | AP43: 89 | AQ43: 98 | AR43: 107 | AS43: 100 | DT43: 36 | DU43: =IF(AND(D43=D42,D43=D41,D43=D40,D43=D39),ROW(35:35),IF(AND(D43=D42,D43=D41,D43=D40),ROW(36:36),IF(AND(D43=D42,D43=D41),ROW(37:37),IF(D43=D42,ROW(38:38),IF(D43>1,ROW(39:39),"-"))))) -> 39 | DV43: 39 | DX43: 1 | EB43: 39 | ED43: 39 | EE43: (36) | EF43: (-)
A44: 40(-) | B44: Christian Balsiger | C44: Värends Hsk | D44: =IF(F44>0.5,(G44/F44),0) -> 117 | F44: =COUNT(N44:BO44) -> 22 | G44: =SUM(N44:BO44) -> 2574 | H44: x | I44: =COUNTIF(BQ44:DR44,2) -> 0 | J44: =COUNTIF(BQ44:DR44,-2) -> 0 | K44: =COUNTIF(BQ44:DR44,1) -> 0 | L44: =COUNTIF(BQ44:DR44,-1) -> 0 | M44: =IF(F44>0,(I44+K44)/(F44),0) -> 0 | N44: 139 | O44: 125 | P44: 93 | Q44: 139 | R44: 91 | S44: 115 | T44: 100 | U44: 118 | V44: 113 | W44: 121 | X44: 106 | Y44: 108 | Z44: 117 | AA44: 110 | AB44: 208 | AC44: 144 | AD44: 112 | AE44: 96 | AF44: 157 | AG44: 80 | AH44: 88 | AI44: 94 | DT44: 40 | DU44: =IF(AND(D44=D43,D44=D42,D44=D41,D44=D40),ROW(36:36),IF(AND(D44=D43,D44=D42,D44=D41),ROW(37:37),IF(AND(D44=D43,D44=D42),ROW(38:38),IF(D44=D43,ROW(39:39),IF(D44>1,ROW(40:40),"-"))))) -> 40 | DV44: 40 | DX44: 1 | EB44: 40 | ED44: 40 | EE44: (40) | EF44: (-)
A45: 41(-) | B45: Janne Pettersson | C45: Balders Hsk | D45: =IF(F45>0.5,(G45/F45),0) -> 116.3333333 | F45: =COUNT(N45:BO45) -> 36 | G45: =SUM(N45:BO45) -> 4188 | H45: x | I45: =COUNTIF(BQ45:DR45,2) -> 0 | J45: =COUNTIF(BQ45:DR45,-2) -> 0 | K45: =COUNTIF(BQ45:DR45,1) -> 0 | L45: =COUNTIF(BQ45:DR45,-1) -> 0 | M45: =IF(F45>0,(I45+K45)/(F45),0) -> 0 | N45: 117 | O45: 111 | P45: 89 | Q45: 115 | R45: 122 | S45: 158 | T45: 84 | U45: 125 | V45: 76 | W45: 142 | X45: 128 | Y45: 124 | Z45: 95 | AA45: 135 | AB45: 149 | AC45: 162 | AD45: 128 | AE45: 115 | AF45: 109 | AG45: 127 | AH45: 105 | AI45: 126 | AJ45: 92 | AK45: 110 | AL45: 46 | AM45: 101 | AN45: 115 | AO45: 125 | AP45: 122 | AQ45: 142 | AR45: 115 | AS45: 91 | AT45: 126 | AU45: 136 | AV45: 104 | AW45: 121 | DT45: 41 | DU45: =IF(AND(D45=D44,D45=D43,D45=D42,D45=D41),ROW(37:37),IF(AND(D45=D44,D45=D43,D45=D42),ROW(38:38),IF(AND(D45=D44,D45=D43),ROW(39:39),IF(D45=D44,ROW(40:40),IF(D45>1,ROW(41:41),"-"))))) -> 41 | DV45: 41 | DX45: 1 | EB45: 41 | ED45: 41 | EE45: (41) | EF45: (-)
A46: 42(-) | B46: Göran Mårtensson | C46: Jämjö Hsk | D46: =IF(F46>0.5,(G46/F46),0) -> 114.9473684 | F46: =COUNT(N46:BO46) -> 19 | G46: =SUM(N46:BO46) -> 2184 | H46: x | I46: =COUNTIF(BQ46:DR46,2) -> 0 | J46: =COUNTIF(BQ46:DR46,-2) -> 0 | K46: =COUNTIF(BQ46:DR46,1) -> 0 | L46: =COUNTIF(BQ46:DR46,-1) -> 0 | M46: =IF(F46>0,(I46+K46)/(F46),0) -> 0 | N46: 113 | O46: 120 | P46: 93 | Q46: 131 | R46: 86 | S46: 95 | T46: 95 | U46: 168 | V46: 132 | W46: 167 | X46: 136 | Y46: 140 | Z46: 102 | AA46: 97 | AB46: 107 | AC46: 88 | AD46: 104 | AE46: 68 | AF46: 142 | DT46: 42 | DU46: =IF(AND(D46=D45,D46=D44,D46=D43,D46=D42),ROW(38:38),IF(AND(D46=D45,D46=D44,D46=D43),ROW(39:39),IF(AND(D46=D45,D46=D44),ROW(40:40),IF(D46=D45,ROW(41:41),IF(D46>1,ROW(42:42),"-"))))) -> 42 | DV46: =IF(DX46=1,ROW(42:42),"-") -> 42 | DX46: 1 | EB46: 42 | ED46: 42 | EE46: (42) | EF46: (-)
A47: 43(-) | B47: Stefan Olofsson | C47: Korpen Nybro | D47: =IF(F47>0.5,(G47/F47),0) -> 114.0833333 | F47: =COUNT(N47:BO47) -> 12 | G47: =SUM(N47:BO47) -> 1369 | H47: x | I47: =COUNTIF(BQ47:DR47,2) -> 0 | J47: =COUNTIF(BQ47:DR47,-2) -> 0 | K47: =COUNTIF(BQ47:DR47,1) -> 0 | L47: =COUNTIF(BQ47:DR47,-1) -> 0 | M47: =IF(F47>0,(I47+K47)/(F47),0) -> 0 | N47: 102 | O47: 118 | P47: 99 | Q47: 119 | R47: 159 | S47: 115 | T47: 116 | U47: 93 | V47: 152 | W47: 131 | X47: 103 | Y47: 62 | DT47: 43 | DU47: 43 | DV47: =IF(DX47=1,ROW(43:43),"-") -> 43 | DX47: 1 | EB47: 43 | ED47: 43 | EE47: (43) | EF47: (-)
A48: 44(-) | B48: Linus Bomler | C48: Vaxholm Hsk | D48: =IF(F48>0.5,(G48/F48),0) -> 113.9090909 | F48: =COUNT(N48:BO48) -> 11 | G48: =SUM(N48:BO48) -> 1253 | H48: x | I48: =COUNTIF(BQ48:DR48,2) -> 0 | J48: =COUNTIF(BQ48:DR48,-2) -> 0 | K48: =COUNTIF(BQ48:DR48,1) -> 0 | L48: =COUNTIF(BQ48:DR48,-1) -> 0 | M48: =IF(F48>0,(I48+K48)/(F48),0) -> 0 | N48: 73 | O48: 113 | P48: 130 | Q48: 91 | R48: 70 | S48: 122 | T48: 94 | U48: 162 | V48: 128 | W48: 156 | X48: 114 | DT48: 44 | DU48: 44 | DV48: =IF(DX48=1,ROW(44:44),"-") -> 44 | DX48: 1 | EB48: 52 | ED48: 44 | EE48: (44) | EF48: (-)
A49: 45(-) | B49: Lars-Erik Ottosson | C49: Lanternan | D49: =IF(F49>0.5,(G49/F49),0) -> 113.2727273 | F49: =COUNT(N49:BO49) -> 11 | G49: =SUM(N49:BO49) -> 1246 | H49: x | I49: =COUNTIF(BQ49:DR49,2) -> 0 | J49: =COUNTIF(BQ49:DR49,-2) -> 0 | K49: =COUNTIF(BQ49:DR49,1) -> 0 | L49: =COUNTIF(BQ49:DR49,-1) -> 0 | M49: =IF(F49>0,(I49+K49)/(F49),0) -> 0 | N49: 95 | O49: 145 | P49: 121 | Q49: 119 | R49: 105 | S49: 109 | T49: 118 | U49: 91 | V49: 132 | W49: 96 | X49: 115 | DT49: 45 | DU49: 45 | DV49: =IF(DX49=1,ROW(45:45),"-") -> 45 | DX49: 1 | EB49: 44 | ED49: 45 | EE49: (45) | EF49: (-)
A50: 46(-) | B50: Lasse Brincner | C50: Värends Hsk | D50: =IF(F50>0.5,(G50/F50),0) -> 113.1 | F50: =COUNT(N50:BO50) -> 20 | G50: =SUM(N50:BO50) -> 2262 | H50: x | I50: =COUNTIF(BQ50:DR50,2) -> 0 | J50: =COUNTIF(BQ50:DR50,-2) -> 0 | K50: =COUNTIF(BQ50:DR50,1) -> 0 | L50: =COUNTIF(BQ50:DR50,-1) -> 0 | M50: =IF(F50>0,(I50+K50)/(F50),0) -> 0 | N50: 130 | O50: 99 | P50: 88 | Q50: 163 | R50: 169 | S50: 96 | T50: 151 | U50: 136 | V50: 62 | W50: 77 | X50: 84 | Y50: 91 | Z50: 118 | AA50: 130 | AB50: 127 | AC50: 103 | AD50: 135 | AE50: 118 | AF50: 59 | AG50: 126 | DT50: 46 | DU50: 46 | DV50: =IF(DX50=1,ROW(46:46),"-") -> 46 | DX50: 1 | EB50: 45 | ED50: 46 | EE50: (46) | EF50: (-)
A51: 47(-) | B51: Pascal Letter | C51: Balders Hsk | D51: =IF(F51>0.5,(G51/F51),0) -> 110.8333333 | F51: =COUNT(N51:BO51) -> 12 | G51: =SUM(N51:BO51) -> 1330 | H51: x | I51: =COUNTIF(BQ51:DR51,2) -> 0 | J51: =COUNTIF(BQ51:DR51,-2) -> 0 | K51: =COUNTIF(BQ51:DR51,1) -> 0 | L51: =COUNTIF(BQ51:DR51,-1) -> 0 | M51: =IF(F51>0,(I51+K51)/(F51),0) -> 0 | N51: 72 | O51: 85 | P51: 157 | Q51: 128 | R51: 75 | S51: 161 | T51: 113 | U51: 88 | V51: 145 | W51: 72 | X51: 81 | Y51: 153 | DT51: 47 | DU51: 47 | DV51: 47 | DX51: 1 | EB51: 46 | ED51: 47 | EE51: (47) | EF51: (-)
A52: 48(-) | B52: Åke Bergqvist | C52: Tingsryd Hsc | D52: =IF(F52>0.5,(G52/F52),0) -> 110.4 | F52: =COUNT(N52:BO52) -> 20 | G52: =SUM(N52:BO52) -> 2208 | H52: x | I52: =COUNTIF(BQ52:DR52,2) -> 0 | J52: =COUNTIF(BQ52:DR52,-2) -> 0 | K52: =COUNTIF(BQ52:DR52,1) -> 0 | L52: =COUNTIF(BQ52:DR52,-1) -> 0 | M52: =IF(F52>0,(I52+K52)/(F52),0) -> 0 | N52: 125 | O52: 145 | P52: 91 | Q52: 77 | R52: 110 | S52: 149 | T52: 103 | U52: 122 | V52: 93 | W52: 135 | X52: 103 | Y52: 176 | Z52: 71 | AA52: 110 | AB52: 111 | AC52: 63 | AD52: 110 | AE52: 145 | AF52: 91 | AG52: 78 | DT52: 48 | DU52: 48 | DV52: 48 | DX52: 1 | EB52: 47 | ED52: 48 | EE52: (48) | EF52: (-)
A53: 49(-) | B53: Tomas Lindahl | C53: Korpen Åseda | D53: =IF(F53>0.5,(G53/F53),0) -> 110.3333333 | F53: =COUNT(N53:BO53) -> 36 | G53: =SUM(N53:BO53) -> 3972 | H53: x | I53: =COUNTIF(BQ53:DR53,2) -> 0 | J53: =COUNTIF(BQ53:DR53,-2) -> 0 | K53: =COUNTIF(BQ53:DR53,1) -> 0 | L53: =COUNTIF(BQ53:DR53,-1) -> 0 | M53: =IF(F53>0,(I53+K53)/(F53),0) -> 0 | N53: 46 | O53: 101 | P53: 143 | Q53: 114 | R53: 83 | S53: 104 | T53: 73 | U53: 165 | V53: 168 | W53: 134 | X53: 81 | Y53: 138 | Z53: 114 | AA53: 171 | AB53: 104 | AC53: 57 | AD53: 94 | AE53: 76 | AF53: 133 | AG53: 115 | AH53: 131 | AI53: 105 | AJ53: 101 | AK53: 74 | AL53: 102 | AM53: 81 | AN53: 99 | AO53: 160 | AP53: 102 | AQ53: 101 | AR53: 66 | AS53: 162 | AT53: 94 | AU53: 197 | AV53: 93 | AW53: 90 | DT53: 49 | DU53: 49 | DV53: 49 | DX53: 1 | EB53: 48 | ED53: 49 | EE53: (49) | EF53: (-)
A54: 50(-) | B54: Ronny Lundberg | C54: Lanternan | D54: =IF(F54>0.5,(G54/F54),0) -> 107.875 | F54: =COUNT(N54:BO54) -> 8 | G54: =SUM(N54:BO54) -> 863 | H54: x | I54: =COUNTIF(BQ54:DR54,2) -> 0 | J54: =COUNTIF(BQ54:DR54,-2) -> 0 | K54: =COUNTIF(BQ54:DR54,1) -> 0 | L54: =COUNTIF(BQ54:DR54,-1) -> 0 | M54: =IF(F54>0,(I54+K54)/(F54),0) -> 0 | N54: 84 | O54: 104 | P54: 197 | Q54: 72 | R54: 120 | S54: 106 | T54: 87 | U54: 93 | DT54: 50 | DU54: =IF(AND(D54=D53,D54=D52,D54=D51,D54=D50),ROW(46:46),IF(AND(D54=D53,D54=D52,D54=D51),ROW(47:47),IF(AND(D54=D53,D54=D52),ROW(48:48),IF(D54=D53,ROW(49:49),IF(D54>1,ROW(50:50),"-"))))) -> 50 | DV54: 50 | DX54: 1 | EB54: 49 | ED54: 50 | EE54: (50) | EF54: (-)
A55: 51(-) | B55: Göran Olofsson | C55: Korpen Nybro | D55: =IF(F55>0.5,(G55/F55),0) -> 107.4827586 | F55: =COUNT(N55:BO55) -> 29 | G55: =SUM(N55:BO55) -> 3117 | H55: x | I55: =COUNTIF(BQ55:DR55,2) -> 0 | J55: =COUNTIF(BQ55:DR55,-2) -> 0 | K55: =COUNTIF(BQ55:DR55,1) -> 0 | L55: =COUNTIF(BQ55:DR55,-1) -> 0 | M55: =IF(F55>0,(I55+K55)/(F55),0) -> 0 | N55: 95 | O55: 61 | P55: 82 | Q55: 58 | R55: 129 | S55: 72 | T55: 132 | U55: 114 | V55: 189 | W55: 108 | X55: 61 | Y55: 142 | Z55: 199 | AA55: 114 | AB55: 138 | AC55: 112 | AD55: 209 | AE55: 92 | AF55: 121 | AG55: 67 | AH55: 47 | AI55: 87 | AJ55: 98 | AK55: 116 | AL55: 95 | AM55: 109 | AN55: 91 | AO55: 81 | AP55: 98 | DT55: 51 | DU55: 51 | DV55: 51 | DX55: 1 | EB55: 50 | ED55: 51 | EE55: (51) | EF55: (-)
A56: 52(-) | B56: Palle Schjölin | C56: Tingsryd Hsc | D56: =IF(F56>0.5,(G56/F56),0) -> 106.6666667 | F56: =COUNT(N56:BO56) -> 3 | G56: =SUM(N56:BO56) -> 320 | H56: x | N56: 135 | O56: 118 | P56: 67 | DT56: 52 | DU56: 52 | DV56: 52 | DX56: 1 | EB56: 51 | ED56: 52 | EE56: (52) | EF56: (-)
A57: 53(-) | B57: Julia Eriksson | C57: Balders Hsk | D57: =IF(F57>0.5,(G57/F57),0) -> 106.3 | F57: =COUNT(N57:BO57) -> 10 | G57: =SUM(N57:BO57) -> 1063 | H57: x | I57: =COUNTIF(BQ57:DR57,2) -> 0 | J57: =COUNTIF(BQ57:DR57,-2) -> 0 | K57: =COUNTIF(BQ57:DR57,1) -> 0 | L57: =COUNTIF(BQ57:DR57,-1) -> 0 | M57: =IF(F57>0,(I57+K57)/(F57),0) -> 0 | N57: 121 | O57: 121 | P57: 88 | Q57: 179 | R57: 109 | S57: 103 | T57: 93 | U57: 55 | V57: 72 | W57: 122 | DT57: 53 | DU57: 53 | DV57: 53 | DX57: 1 | EB57: 53 | ED57: 53 | EE57: (53) | EF57: (-)
A58: 54(-) | B58: Jan Johansson | C58: Tingsryd Hsc | D58: =IF(F58>0.5,(G58/F58),0) -> 106 | F58: =COUNT(N58:BO58) -> 3 | G58: =SUM(N58:BO58) -> 318 | H58: x | I58: =COUNTIF(BQ58:DR58,2) -> 0 | J58: =COUNTIF(BQ58:DR58,-2) -> 0 | K58: =COUNTIF(BQ58:DR58,1) -> 0 | L58: =COUNTIF(BQ58:DR58,-1) -> 0 | M58: =IF(F58>0,(I58+K58)/(F58),0) -> 0 | N58: 91 | O58: 77 | P58: 150 | DT58: 54 | DU58: 54 | DV58: 54 | DX58: 1 | EB58: 109 | ED58: 54 | EE58: (54) | EF58: (-)
A59: 55(-) | B59: Ted Lilja | C59: Lanternan | D59: =IF(F59>0.5,(G59/F59),0) -> 105.125 | F59: =COUNT(N59:BO59) -> 8 | G59: =SUM(N59:BO59) -> 841 | H59: x | I59: =COUNTIF(BQ59:DR59,2) -> 0 | J59: =COUNTIF(BQ59:DR59,-2) -> 0 | K59: =COUNTIF(BQ59:DR59,1) -> 0 | L59: =COUNTIF(BQ59:DR59,-1) -> 0 | M59: =IF(F59>0,(I59+K59)/(F59),0) -> 0 | N59: 80 | O59: 114 | P59: 161 | Q59: 23 | R59: 111 | S59: 120 | T59: 107 | U59: 125 | DT59: 55 | DU59: 55 | DV59: 55 | DX59: 1 | EB59: 54 | ED59: 55 | EE59: (55) | EF59: (-)
A60: 56(-) | B60: Peter Olofsson | C60: Korpen Nybro | D60: =IF(F60>0.5,(G60/F60),0) -> 105 | F60: =COUNT(N60:BO60) -> 5 | G60: =SUM(N60:BO60) -> 525 | H60: x | I60: =COUNTIF(BQ60:DR60,2) -> 0 | J60: =COUNTIF(BQ60:DR60,-2) -> 0 | K60: =COUNTIF(BQ60:DR60,1) -> 0 | L60: =COUNTIF(BQ60:DR60,-1) -> 0 | M60: =IF(F60>0,(I60+K60)/(F60),0) -> 0 | N60: 133 | O60: 105 | P60: 94 | Q60: 108 | R60: 85 | DT60: 56 | DU60: 56 | DV60: 56 | DX60: 1 | EB60: 55 | ED60: 56 | EE60: (56) | EF60: (-)
A61: 57(-) | B61: Leif Danielsson | C61: Korpen Nybro | D61: =IF(F61>0.5,(G61/F61),0) -> 103.3333333 | F61: =COUNT(N61:BO61) -> 12 | G61: =SUM(N61:BO61) -> 1240 | H61: x | I61: =COUNTIF(BQ61:DR61,2) -> 0 | J61: =COUNTIF(BQ61:DR61,-2) -> 0 | K61: =COUNTIF(BQ61:DR61,1) -> 0 | L61: =COUNTIF(BQ61:DR61,-1) -> 0 | M61: =IF(F61>0,(I61+K61)/(F61),0) -> 0 | N61: 83 | O61: 100 | P61: 93 | Q61: 113 | R61: 126 | S61: 133 | T61: 97 | U61: 101 | V61: 99 | W61: 99 | X61: 106 | Y61: 90 | DT61: 57 | DU61: 57 | DV61: 57 | DX61: 1 | EB61: 56 | ED61: 57 | EE61: (57) | EF61: (-)
A62: 58(-) | B62: Bela Bodi | C62: Växjö Hsk | D62: =IF(F62>0.5,(G62/F62),0) -> 103 | F62: =COUNT(N62:BO62) -> 7 | G62: =SUM(N62:BO62) -> 721 | H62: x | I62: =COUNTIF(BQ62:DR62,2) -> 0 | J62: =COUNTIF(BQ62:DR62,-2) -> 0 | K62: =COUNTIF(BQ62:DR62,1) -> 0 | L62: =COUNTIF(BQ62:DR62,-1) -> 0 | M62: =IF(F62>0,(I62+K62)/(F62),0) -> 0 | N62: 81 | O62: 81 | P62: 141 | Q62: 125 | R62: 110 | S62: 66 | T62: 117 | DT62: 58 | DU62: 58 | DV62: 58 | DX62: 1 | EB62: 57 | ED62: 58 | EE62: (58) | EF62: (-)
A63: 59(-) | B63: Yamonlada Damnoegam | C63: Växjö Hsk | D63: =IF(F63>0.5,(G63/F63),0) -> 99.69230769 | F63: =COUNT(N63:BO63) -> 13 | G63: =SUM(N63:BO63) -> 1296 | H63: x | I63: =COUNTIF(BQ63:DR63,2) -> 0 | J63: =COUNTIF(BQ63:DR63,-2) -> 0 | K63: =COUNTIF(BQ63:DR63,1) -> 0 | L63: =COUNTIF(BQ63:DR63,-1) -> 0 | M63: =IF(F63>0,(I63+K63)/(F63),0) -> 0 | N63: 104 | O63: 94 | P63: 109 | Q63: 139 | R63: 95 | S63: 68 | T63: 74 | U63: 104 | V63: 97 | W63: 129 | X63: 110 | Y63: 103 | Z63: 70 | DT63: 59 | DU63: 59 | DV63: 59 | DX63: 1 | EB63: 58 | ED63: 59 | EE63: (59) | EF63: (-)
A64: 60(-) | B64: Roger Eriksson | C64: Balders Hsk | D64: =IF(F64>0.5,(G64/F64),0) -> 99.33333333 | F64: =COUNT(N64:BO64) -> 18 | G64: =SUM(N64:BO64) -> 1788 | H64: x | I64: =COUNTIF(BQ64:DR64,2) -> 0 | J64: =COUNTIF(BQ64:DR64,-2) -> 0 | K64: =COUNTIF(BQ64:DR64,1) -> 0 | L64: =COUNTIF(BQ64:DR64,-1) -> 0 | M64: =IF(F64>0,(I64+K64)/(F64),0) -> 0 | N64: 43 | O64: 95 | P64: 103 | Q64: 112 | R64: 167 | S64: 88 | T64: 104 | U64: 62 | V64: 111 | W64: 97 | X64: 84 | Y64: 83 | Z64: 83 | AA64: 132 | AB64: 155 | AC64: 111 | AD64: 79 | AE64: 79 | DT64: 60 | DU64: 60 | DV64: 60 | DX64: 1 | EB64: 59 | ED64: 60 | EE64: (60) | EF64: (-)
A65: 60(-) | B65: Amanda Blomgren | C65: Lanternan | D65: =IF(F65>0.5,(G65/F65),0) -> 99.33333333 | F65: =COUNT(N65:BO65) -> 3 | G65: =SUM(N65:BO65) -> 298 | H65: x | I65: =COUNTIF(BQ65:DR65,2) -> 0 | J65: =COUNTIF(BQ65:DR65,-2) -> 0 | K65: =COUNTIF(BQ65:DR65,1) -> 0 | L65: =COUNTIF(BQ65:DR65,-1) -> 0 | M65: =IF(F65>0,(I65+K65)/(F65),0) -> 0 | N65: 142 | O65: 88 | P65: 68 | DT65: 60 | DU65: 60 | DV65: 61 | DX65: 1 | EB65: 60 | ED65: 60 | EE65: (60) | EF65: (-)
A66: =IF(H66="x",DU66&" ("&EF66&")",DU66&" ("&DT66&")") -> 62 ((-)) | B66: Jarita Fredriksson Väre | C66: Balders Hsk | D66: =IF(F66>0.5,(G66/F66),0) -> 97.75757576 | F66: =COUNT(N66:BO66) -> 33 | G66: =SUM(N66:BO66) -> 3226 | H66: x | I66: =COUNTIF(BQ66:DR66,2) -> 0 | J66: =COUNTIF(BQ66:DR66,-2) -> 0 | K66: =COUNTIF(BQ66:DR66,1) -> 0 | L66: =COUNTIF(BQ66:DR66,-1) -> 0 | M66: =IF(F66>0,(I66+K66)/(F66),0) -> 0 | N66: 128 | O66: 72 | P66: 30 | Q66: 61 | R66: 90 | S66: 84 | T66: 178 | U66: 112 | V66: 81 | W66: 119 | X66: 100 | Y66: 102 | Z66: 53 | AA66: 64 | AB66: 33 | AC66: 77 | AD66: 75 | AE66: 87 | AF66: 112 | AG66: 104 | AH66: 153 | AI66: 102 | AJ66: 130 | AK66: 127 | AL66: 123 | AM66: 86 | AN66: 64 | AO66: 135 | AP66: 127 | AQ66: 117 | AR66: 109 | AS66: 78 | AT66: 113 | DT66: 63 | DU66: 62 | DV66: 62 | DX66: 1 | EB66: 61 | ED66: 62 | EE66: (63) | EF66: (-)
A67: =IF(H67="x",DU67&" ("&EF67&")",DU67&" ("&DT67&")") -> 63 ((-)) | B67: Anne-Marie Larsson | C67: Tingsryd Hsc | D67: =IF(F67>0.5,(G67/F67),0) -> 97.2 | F67: =COUNT(N67:BO67) -> 5 | G67: =SUM(N67:BO67) -> 486 | H67: x | I67: =COUNTIF(BQ67:DR67,2) -> 0 | J67: =COUNTIF(BQ67:DR67,-2) -> 0 | K67: =COUNTIF(BQ67:DR67,1) -> 0 | L67: =COUNTIF(BQ67:DR67,-1) -> 0 | M67: =IF(F67>0,(I67+K67)/(F67),0) -> 0 | N67: 108 | O67: 82 | P67: 84 | Q67: 100 | R67: 112 | DT67: 64 | DU67: 63 | DV67: 63 | DX67: 1 | EB67: 62 | ED67: 63 | EE67: (64) | EF67: (-)
A68: =IF(H68="x",DU68&" ("&EF68&")",DU68&" ("&DT68&")") -> 64 ((-)) | B68: Ingegerd Pettersson | C68: Lanternan | D68: =IF(F68>0.5,(G68/F68),0) -> 97 | F68: =COUNT(N68:BO68) -> 5 | G68: =SUM(N68:BO68) -> 485 | H68: x | I68: =COUNTIF(BQ68:DR68,2) -> 0 | J68: =COUNTIF(BQ68:DR68,-2) -> 0 | K68: =COUNTIF(BQ68:DR68,1) -> 0 | L68: =COUNTIF(BQ68:DR68,-1) -> 0 | M68: =IF(F68>0,(I68+K68)/(F68),0) -> 0 | N68: 121 | O68: 65 | P68: 109 | Q68: 118 | R68: 72 | DT68: 65 | DU68: 64 | DV68: 64 | DX68: 1 | EB68: 64 | ED68: 64 | EE68: (65) | EF68: (-)
A69: =IF(H69="x",DU69&" ("&EF69&")",DU69&" ("&DT69&")") -> 65 ((-)) | B69: Sune Olsson | C69: Korpen Nybro | D69: =IF(F69>0.5,(G69/F69),0) -> 96 | F69: =COUNT(N69:BO69) -> 17 | G69: =SUM(N69:BO69) -> 1632 | H69: x | I69: =COUNTIF(BQ69:DR69,2) -> 0 | J69: =COUNTIF(BQ69:DR69,-2) -> 0 | K69: =COUNTIF(BQ69:DR69,1) -> 0 | L69: =COUNTIF(BQ69:DR69,-1) -> 0 | M69: =IF(F69>0,(I69+K69)/(F69),0) -> 0 | N69: 109 | O69: 128 | P69: 89 | Q69: 96 | R69: 54 | S69: 94 | T69: 91 | U69: 64 | V69: 145 | W69: 48 | X69: 98 | Y69: 93 | Z69: 95 | AA69: 116 | AB69: 91 | AC69: 80 | AD69: 141 | DT69: 66 | DU69: 65 | DV69: =IF(DX69=1,ROW(65:65),"-") -> 65 | DX69: 1 | EB69: 65 | ED69: =IF(DX69=1,DU69,IF(DX69="",DU69,"")) -> 65 | EE69: =IF(DX69=1,"("&DT69&")","("&DV69&")") -> (66) | EF69: (-)
A70: =IF(H70="x",DU70&" ("&EF70&")",DU70&" ("&DT70&")") -> 66 ((-)) | B70: Moje Liljegren | C70: Tingsryd Hsc | D70: =IF(F70>0.5,(G70/F70),0) -> 95.30769231 | F70: =COUNT(N70:BO70) -> 13 | G70: =SUM(N70:BO70) -> 1239 | H70: x | I70: =COUNTIF(BQ70:DR70,2) -> 0 | J70: =COUNTIF(BQ70:DR70,-2) -> 0 | K70: =COUNTIF(BQ70:DR70,1) -> 0 | L70: =COUNTIF(BQ70:DR70,-1) -> 0 | M70: =IF(F70>0,(I70+K70)/(F70),0) -> 0 | N70: 27 | O70: 77 | P70: 92 | Q70: 86 | R70: 149 | S70: 87 | T70: 112 | U70: 102 | V70: 88 | W70: 73 | X70: 155 | Y70: 115 | Z70: 76 | DT70: 67 | DU70: 66 | DV70: 66 | DX70: 1 | EB70: 66 | ED70: 66 | EE70: (67) | EF70: (-)
A71: 67 ((-)) | B71: Emil Nilsson | C71: Balders Hsk | D71: =IF(F71>0.5,(G71/F71),0) -> 95.28 | F71: =COUNT(N71:BO71) -> 25 | G71: =SUM(N71:BO71) -> 2382 | H71: x | I71: =COUNTIF(BQ71:DR71,2) -> 0 | J71: =COUNTIF(BQ71:DR71,-2) -> 0 | K71: =COUNTIF(BQ71:DR71,1) -> 0 | L71: =COUNTIF(BQ71:DR71,-1) -> 0 | M71: =IF(F71>0,(I71+K71)/(F71),0) -> 0 | N71: 79 | O71: 119 | P71: 108 | Q71: 71 | R71: 123 | S71: 141 | T71: 84 | U71: 75 | V71: 81 | W71: 149 | X71: 107 | Y71: 66 | Z71: 90 | AA71: 85 | AB71: 135 | AC71: 122 | AD71: 121 | AE71: 79 | AF71: 92 | AG71: 99 | AH71: 80 | AI71: 79 | AJ71: 37 | AK71: 85 | AL71: 75 | DT71: 62 | DU71: 67 | DV71: 67 | DX71: 1 | EB71: 67 | ED71: 67 | EE71: (62) | EF71: (-)
A72: 68 ((-)) | B72: Mats Mårtensson | C72: Jämjö Hsk | D72: =IF(F72>0.5,(G72/F72),0) -> 94.65217391 | F72: =COUNT(N72:BO72) -> 23 | G72: =SUM(N72:BO72) -> 2177 | H72: x | I72: =COUNTIF(BQ72:DR72,2) -> 0 | J72: =COUNTIF(BQ72:DR72,-2) -> 0 | K72: =COUNTIF(BQ72:DR72,1) -> 0 | L72: =COUNTIF(BQ72:DR72,-1) -> 0 | M72: =IF(F72>0,(I72+K72)/(F72),0) -> 0 | N72: 90 | O72: 143 | P72: 75 | Q72: 91 | R72: 60 | S72: 98 | T72: 111 | U72: 85 | V72: 116 | W72: 88 | X72: 112 | Y72: 102 | Z72: 72 | AA72: 105 | AB72: 74 | AC72: 115 | AD72: 116 | AE72: 57 | AF72: 49 | AG72: 103 | AH72: 77 | AI72: 88 | AJ72: 150 | DT72: 68 | DU72: 68 | DV72: 68 | DX72: 1 | EB72: 68 | ED72: 68 | EE72: (68) | EF72: (-)
A73: 69 ((-)) | B73: Martin Antic | C73: Värends Hsk | D73: =IF(F73>0.5,(G73/F73),0) -> 94 | F73: =COUNT(N73:BO73) -> 19 | G73: =SUM(N73:BO73) -> 1786 | H73: x | I73: =COUNTIF(BQ73:DR73,2) -> 0 | J73: =COUNTIF(BQ73:DR73,-2) -> 0 | K73: =COUNTIF(BQ73:DR73,1) -> 0 | L73: =COUNTIF(BQ73:DR73,-1) -> 0 | M73: =IF(F73>0,(I73+K73)/(F73),0) -> 0 | N73: 88 | O73: 117 | P73: 127 | Q73: 104 | R73: 45 | S73: 78 | T73: 89 | U73: 61 | V73: 57 | W73: 127 | X73: 71 | Y73: 64 | Z73: 53 | AA73: 87 | AB73: 172 | AC73: 109 | AD73: 118 | AE73: 88 | AF73: 131 | DT73: 69 | DU73: 69 | DV73: 69 | DX73: 1 | EB73: 69 | ED73: 69 | EE73: (69) | EF73: (-)
A74: 70 ((-)) | B74: Robert Wretborg | C74: Vaxholm Hsk | D74: =IF(F74>0.5,(G74/F74),0) -> 92.5 | F74: =COUNT(N74:BO74) -> 2 | G74: =SUM(N74:BO74) -> 185 | H74: x | I74: =COUNTIF(BQ74:DR74,2) -> 0 | J74: =COUNTIF(BQ74:DR74,-2) -> 0 | K74: =COUNTIF(BQ74:DR74,1) -> 0 | L74: =COUNTIF(BQ74:DR74,-1) -> 0 | M74: =IF(F74>0,(I74+K74)/(F74),0) -> 0 | N74: 102 | O74: 83 | DT74: 70 | DU74: 70 | DV74: 70 | DX74: 1 | EB74: 70 | ED74: 70 | EE74: (70) | EF74: (-)
A75: 71 ((-)) | B75: Erik Isaksson | C75: Korpen Åseda | D75: =IF(F75>0.5,(G75/F75),0) -> 92 | F75: =COUNT(N75:BO75) -> 3 | G75: =SUM(N75:BO75) -> 276 | H75: x | I75: =COUNTIF(BQ75:DR75,2) -> 0 | J75: =COUNTIF(BQ75:DR75,-2) -> 0 | K75: =COUNTIF(BQ75:DR75,1) -> 0 | L75: =COUNTIF(BQ75:DR75,-1) -> 0 | M75: =IF(F75>0,(I75+K75)/(F75),0) -> 0 | N75: 115 | O75: 83 | P75: 78 | DT75: 71 | DU75: =IF(AND(D75=D74,D75=D73,D75=D72,D75=D71),ROW(67:67),IF(AND(D75=D74,D75=D73,D75=D72),ROW(68:68),IF(AND(D75=D74,D75=D73),ROW(69:69),IF(D75=D74,ROW(70:70),IF(D75>1,ROW(71:71),"-"))))) -> 71 | DV75: 71 | DX75: 1 | EB75: 114 | ED75: 71 | EE75: (71) | EF75: (-)
A76: 72 ((-)) | B76: Sandra Rydell | C76: Värends Hsk | D76: =IF(F76>0.5,(G76/F76),0) -> 91.35294118 | F76: =COUNT(N76:BO76) -> 17 | G76: =SUM(N76:BO76) -> 1553 | H76: x | I76: =COUNTIF(BQ76:DR76,2) -> 0 | J76: =COUNTIF(BQ76:DR76,-2) -> 0 | K76: =COUNTIF(BQ76:DR76,1) -> 0 | L76: =COUNTIF(BQ76:DR76,-1) -> 0 | M76: =IF(F76>0,(I76+K76)/(F76),0) -> 0 | N76: 55 | O76: 81 | P76: 89 | Q76: 99 | R76: 51 | S76: 95 | T76: 87 | U76: 64 | V76: 126 | W76: 112 | X76: 109 | Y76: 141 | Z76: 81 | AA76: 47 | AB76: 62 | AC76: 120 | AD76: 134 | DT76: 72 | DU76: 72 | DV76: 72 | DX76: 1 | EB76: 71 | ED76: 72 | EE76: (72) | EF76: (-)
A77: 73 ((-)) | B77: Hernan Hernandez | C77: Jämjö Hsk | D77: =IF(F77>0.5,(G77/F77),0) -> 90.2 | F77: =COUNT(N77:BO77) -> 5 | G77: =SUM(N77:BO77) -> 451 | H77: x | I77: =COUNTIF(BQ77:DR77,2) -> 0 | J77: =COUNTIF(BQ77:DR77,-2) -> 0 | K77: =COUNTIF(BQ77:DR77,1) -> 0 | L77: =COUNTIF(BQ77:DR77,-1) -> 0 | M77: =IF(F77>0,(I77+K77)/(F77),0) -> 0 | N77: 38 | O77: 127 | P77: 110 | Q77: 74 | R77: 102 | DT77: 73 | DU77: 73 | DV77: 73 | DX77: 1 | EB77: 111 | ED77: 73 | EE77: (73) | EF77: (-)
A78: 74 ((-)) | B78: Arne Blidh | C78: Lanternan | D78: =IF(F78>0.5,(G78/F78),0) -> 89 | F78: =COUNT(N78:BO78) -> 6 | G78: =SUM(N78:BO78) -> 534 | H78: x | I78: =COUNTIF(BQ78:DR78,2) -> 0 | J78: =COUNTIF(BQ78:DR78,-2) -> 0 | K78: =COUNTIF(BQ78:DR78,1) -> 0 | L78: =COUNTIF(BQ78:DR78,-1) -> 0 | M78: =IF(F78>0,(I78+K78)/(F78),0) -> 0 | N78: 84 | O78: 94 | P78: 111 | Q78: 105 | R78: 82 | S78: 58 | DT78: 74 | DU78: 74 | DV78: 74 | DX78: 1 | EB78: 72 | ED78: 74 | EE78: (74) | EF78: (-)
A79: 74 ((-)) | B79: Arne Nygren | C79: Korpen Åseda | D79: =IF(F79>0.5,(G79/F79),0) -> 89 | F79: =COUNT(N79:BO79) -> 2 | G79: =SUM(N79:BO79) -> 178 | H79: x | I79: =COUNTIF(BQ79:DR79,2) -> 0 | J79: =COUNTIF(BQ79:DR79,-2) -> 0 | K79: =COUNTIF(BQ79:DR79,1) -> 0 | L79: =COUNTIF(BQ79:DR79,-1) -> 0 | M79: =IF(F79>0,(I79+K79)/(F79),0) -> 0 | N79: 66 | O79: 112 | DT79: 74 | DU79: 74 | DV79: 75 | DX79: 1 | EB79: 73 | ED79: 74 | EE79: (74) | EF79: (-)
A80: 76 ((-)) | B80: Alex Rydell | C80: Värends Hsk | D80: =IF(F80>0.5,(G80/F80),0) -> 88.61538462 | F80: =COUNT(N80:BO80) -> 13 | G80: =SUM(N80:BO80) -> 1152 | H80: x | I80: =COUNTIF(BQ80:DR80,2) -> 0 | J80: =COUNTIF(BQ80:DR80,-2) -> 0 | K80: =COUNTIF(BQ80:DR80,1) -> 0 | L80: =COUNTIF(BQ80:DR80,-1) -> 0 | M80: =IF(F80>0,(I80+K80)/(F80),0) -> 0 | N80: 145 | O80: 66 | P80: 103 | Q80: 99 | R80: 127 | S80: 126 | T80: 104 | U80: 72 | V80: 72 | W80: 71 | X80: 91 | Y80: 37 | Z80: 39 | DT80: 76 | DU80: 76 | DV80: 76 | DX80: 1 | EB80: 74 | ED80: 76 | EE80: (76) | EF80: (-)
A81: 77 ((-)) | B81: Elin Olsson | C81: Dynapac Hsc | D81: =IF(F81>0.5,(G81/F81),0) -> 86 | F81: =COUNT(N81:BO81) -> 4 | G81: =SUM(N81:BO81) -> 344 | H81: x | I81: =COUNTIF(BQ81:DR81,2) -> 0 | J81: =COUNTIF(BQ81:DR81,-2) -> 0 | K81: =COUNTIF(BQ81:DR81,1) -> 0 | L81: =COUNTIF(BQ81:DR81,-1) -> 0 | M81: =IF(F81>0,(I81+K81)/(F81),0) -> 0 | N81: 127 | O81: 106 | P81: 53 | Q81: 58 | DT81: 77 | DU81: 77 | DV81: 77 | DX81: 1 | EB81: 75 | ED81: 77 | EE81: (77) | EF81: (-)
A82: 78 ((-)) | B82: Daniel Mårtensson | C82: Jämjö Hsk | D82: =IF(F82>0.5,(G82/F82),0) -> 85.95 | F82: =COUNT(N82:BO82) -> 20 | G82: =SUM(N82:BO82) -> 1719 | H82: x | I82: =COUNTIF(BQ82:DR82,2) -> 0 | J82: =COUNTIF(BQ82:DR82,-2) -> 0 | K82: =COUNTIF(BQ82:DR82,1) -> 0 | L82: =COUNTIF(BQ82:DR82,-1) -> 0 | M82: =IF(F82>0,(I82+K82)/(F82),0) -> 0 | N82: 47 | O82: 98 | P82: 54 | Q82: 67 | R82: 109 | S82: 70 | T82: 119 | U82: 100 | V82: 121 | W82: 132 | X82: 94 | Y82: 142 | Z82: 65 | AA82: 78 | AB82: 108 | AC82: 76 | AD82: 84 | AE82: 72 | AF82: 44 | AG82: 39 | DT82: 78 | DU82: 78 | DV82: 78 | DX82: 1 | EB82: 76 | ED82: 78 | EE82: (78) | EF82: (-)
A83: 79 ((-)) | B83: Torbjörn Svennberg | C83: Balders Hsk | D83: =IF(F83>0.5,(G83/F83),0) -> 84.72727273 | F83: =COUNT(N83:BO83) -> 11 | G83: =SUM(N83:BO83) -> 932 | H83: x | I83: =COUNTIF(BQ83:DR83,2) -> 0 | J83: =COUNTIF(BQ83:DR83,-2) -> 0 | K83: =COUNTIF(BQ83:DR83,1) -> 0 | L83: =COUNTIF(BQ83:DR83,-1) -> 0 | M83: =IF(F83>0,(I83+K83)/(F83),0) -> 0 | N83: 63 | O83: 119 | P83: 111 | Q83: 64 | R83: 118 | S83: 65 | T83: 57 | U83: 88 | V83: 57 | W83: 100 | X83: 90 | DT83: 79 | DU83: 79 | DV83: 79 | DX83: 1 | EB83: 77 | ED83: 79 | EE83: (79) | EF83: (-)
A84: 80 ((-)) | B84: Alf Svensson | C84: Korpen Åseda | D84: =IF(F84>0.5,(G84/F84),0) -> 83.67857143 | F84: =COUNT(N84:BO84) -> 28 | G84: =SUM(N84:BO84) -> 2343 | H84: x | I84: =COUNTIF(BQ84:DR84,2) -> 0 | J84: =COUNTIF(BQ84:DR84,-2) -> 0 | K84: =COUNTIF(BQ84:DR84,1) -> 0 | L84: =COUNTIF(BQ84:DR84,-1) -> 0 | M84: =IF(F84>0,(I84+K84)/(F84),0) -> 0 | N84: 94 | O84: 74 | P84: 79 | Q84: 50 | R84: 88 | S84: 37 | T84: 100 | U84: 75 | V84: 88 | W84: 72 | X84: 87 | Y84: 130 | Z84: 91 | AA84: 112 | AB84: 111 | AC84: 91 | AD84: 104 | AE84: 48 | AF84: 74 | AG84: 61 | AH84: 78 | AI84: 130 | AJ84: 91 | AK84: 38 | AL84: 86 | AM84: 92 | AN84: 71 | AO84: 91 | DT84: 80 | DU84: 80 | DV84: 80 | DX84: 1 | EB84: 78 | ED84: 80 | EE84: (80) | EF84: (-)
A85: 81 ((-)) | B85: Christoffer Lovén | C85: Balders Hsk | D85: =IF(F85>0.5,(G85/F85),0) -> 83 | F85: =COUNT(N85:BO85) -> 4 | G85: =SUM(N85:BO85) -> 332 | H85: x | I85: =COUNTIF(BQ85:DR85,2) -> 0 | J85: =COUNTIF(BQ85:DR85,-2) -> 0 | K85: =COUNTIF(BQ85:DR85,1) -> 0 | L85: =COUNTIF(BQ85:DR85,-1) -> 0 | M85: =IF(F85>0,(I85+K85)/(F85),0) -> 0 | N85: 93 | O85: 50 | P85: 89 | Q85: 100 | DT85: 81 | DU85: 81 | DV85: 81 | DX85: 1 | EB85: 79 | ED85: 81 | EE85: (81) | EF85: (-)
A86: 82 ((-)) | B86: Tommy Karlsson | C86: Korpen Nybro | D86: =IF(F86>0.5,(G86/F86),0) -> 82.875 | F86: =COUNT(N86:BO86) -> 8 | G86: =SUM(N86:BO86) -> 663 | H86: x | I86: =COUNTIF(BQ86:DR86,2) -> 0 | J86: =COUNTIF(BQ86:DR86,-2) -> 0 | K86: =COUNTIF(BQ86:DR86,1) -> 0 | L86: =COUNTIF(BQ86:DR86,-1) -> 0 | M86: =IF(F86>0,(I86+K86)/(F86),0) -> 0 | N86: 123 | O86: 129 | P86: 62 | Q86: 61 | R86: 56 | S86: 61 | T86: 97 | U86: 74 | DT86: 82 | DU86: 82 | DV86: 82 | DX86: 1 | EB86: 80 | ED86: 82 | EE86: (82) | EF86: (-)
A87: 83 ((-)) | B87: Dan Hallstan | C87: Växjö Hsk | D87: =IF(F87>0.5,(G87/F87),0) -> 80.76470588 | F87: =COUNT(N87:BO87) -> 17 | G87: =SUM(N87:BO87) -> 1373 | H87: x | I87: =COUNTIF(BQ87:DR87,2) -> 0 | J87: =COUNTIF(BQ87:DR87,-2) -> 0 | K87: =COUNTIF(BQ87:DR87,1) -> 0 | L87: =COUNTIF(BQ87:DR87,-1) -> 0 | M87: =IF(F87>0,(I87+K87)/(F87),0) -> 0 | N87: 94 | O87: 64 | P87: 70 | Q87: 100 | R87: 139 | S87: 80 | T87: 95 | U87: 155 | V87: 80 | W87: 99 | X87: 51 | Y87: 55 | Z87: 66 | AA87: 85 | AB87: 38 | AC87: 58 | AD87: 44 | DT87: 83 | DU87: 83 | DV87: 83 | DX87: 1 | EB87: 81 | ED87: 83 | EE87: (83) | EF87: (-)
A88: 84 ((-)) | B88: Emil Rehn | C88: Korpen Åseda | D88: =IF(F88>0.5,(G88/F88),0) -> 80.5 | F88: =COUNT(N88:BO88) -> 2 | G88: =SUM(N88:BO88) -> 161 | H88: x | I88: =COUNTIF(BQ88:DR88,2) -> 0 | J88: =COUNTIF(BQ88:DR88,-2) -> 0 | K88: =COUNTIF(BQ88:DR88,1) -> 0 | L88: =COUNTIF(BQ88:DR88,-1) -> 0 | M88: =IF(F88>0,(I88+K88)/(F88),0) -> 0 | N88: 45 | O88: 116 | DT88: 84 | DU88: 84 | DV88: 84 | DX88: 1 | EB88: 82 | ED88: 84 | EE88: (84) | EF88: (-)
A89: 85 ((-)) | B89: Leffe Henryson | C89: Korpen Nybro | D89: =IF(F89>0.5,(G89/F89),0) -> 78.33333333 | F89: =COUNT(N89:BO89) -> 6 | G89: =SUM(N89:BO89) -> 470 | H89: x | I89: =COUNTIF(BQ89:DR89,2) -> 0 | J89: =COUNTIF(BQ89:DR89,-2) -> 0 | K89: =COUNTIF(BQ89:DR89,1) -> 0 | L89: =COUNTIF(BQ89:DR89,-1) -> 0 | M89: =IF(F89>0,(I89+K89)/(F89),0) -> 0 | N89: 103 | O89: 64 | P89: 101 | Q89: 73 | R89: 57 | S89: 72 | DT89: 85 | DU89: 85 | DV89: 85 | DX89: 1 | EB89: 83 | ED89: 85 | EE89: (85) | EF89: (-)
A90: 86 ((-)) | B90: Janne Moberg | C90: Korpen Nybro | D90: =IF(F90>0.5,(G90/F90),0) -> 78 | F90: =COUNT(N90:BO90) -> 2 | G90: =SUM(N90:BO90) -> 156 | H90: x | I90: =COUNTIF(BQ90:DR90,2) -> 0 | J90: =COUNTIF(BQ90:DR90,-2) -> 0 | K90: =COUNTIF(BQ90:DR90,1) -> 0 | L90: =COUNTIF(BQ90:DR90,-1) -> 0 | M90: =IF(F90>0,(I90+K90)/(F90),0) -> 0 | N90: 90 | O90: 66 | DT90: 86 | DU90: 86 | DV90: 86 | DX90: 1 | EB90: 84 | ED90: 86 | EE90: (86) | EF90: (-)
A91: 87 ((-)) | B91: Mikael Grönskog | C91: Sibbamåla | D91: =IF(F91>0.5,(G91/F91),0) -> 77.5 | F91: =COUNT(N91:BO91) -> 4 | G91: =SUM(N91:BO91) -> 310 | H91: x | I91: =COUNTIF(BQ91:DR91,2) -> 0 | J91: =COUNTIF(BQ91:DR91,-2) -> 0 | K91: =COUNTIF(BQ91:DR91,1) -> 0 | L91: =COUNTIF(BQ91:DR91,-1) -> 0 | M91: =IF(F91>0,(I91+K91)/(F91),0) -> 0 | N91: 36 | O91: 95 | P91: 88 | Q91: 91 | DT91: 87 | DU91: 87 | DV91: 87 | DX91: 1 | EB91: 85 | ED91: 87 | EE91: (87) | EF91: (-)
A92: 88 ((-)) | B92: Anders Karlsson | C92: Värends Hsk | D92: =IF(F92>0.5,(G92/F92),0) -> 76.8 | F92: =COUNT(N92:BO92) -> 5 | G92: =SUM(N92:BO92) -> 384 | H92: x | I92: =COUNTIF(BQ92:DR92,2) -> 0 | J92: =COUNTIF(BQ92:DR92,-2) -> 0 | K92: =COUNTIF(BQ92:DR92,1) -> 0 | L92: =COUNTIF(BQ92:DR92,-1) -> 0 | M92: =IF(F92>0,(I92+K92)/(F92),0) -> 0 | N92: 76 | O92: 74 | P92: 98 | Q92: 68 | R92: 68 | DT92: 88 | DU92: 88 | DV92: 88 | DX92: 1 | EB92: 86 | ED92: 88 | EE92: (88) | EF92: (-)
A93: 89 ((-)) | B93: Malin Löwberg | C93: Balders Hsk | D93: =IF(F93>0.5,(G93/F93),0) -> 76.59375 | F93: =COUNT(N93:BO93) -> 32 | G93: =SUM(N93:BO93) -> 2451 | H93: x | I93: =COUNTIF(BQ93:DR93,2) -> 0 | J93: =COUNTIF(BQ93:DR93,-2) -> 0 | K93: =COUNTIF(BQ93:DR93,1) -> 0 | L93: =COUNTIF(BQ93:DR93,-1) -> 0 | M93: =IF(F93>0,(I93+K93)/(F93),0) -> 0 | N93: 93 | O93: 112 | P93: 37 | Q93: 71 | R93: 48 | S93: 116 | T93: 64 | U93: 134 | V93: 75 | W93: 126 | X93: 73 | Y93: 23 | Z93: 67 | AA93: 54 | AB93: 37 | AC93: 61 | AD93: 47 | AE93: 36 | AF93: 78 | AG93: 54 | AH93: 73 | AI93: 53 | AJ93: 105 | AK93: 99 | AL93: 71 | AM93: 108 | AN93: 88 | AO93: 105 | AP93: 111 | AQ93: 55 | AR93: 69 | AS93: 108 | DT93: 89 | DU93: 89 | DV93: 89 | DX93: 1 | EB93: 87 | ED93: 89 | EE93: (89) | EF93: (-)
A94: 90 ((-)) | B94: Linus Blom | C94: Vaxholm Hsk | D94: =IF(F94>0.5,(G94/F94),0) -> 76 | F94: =COUNT(N94:BO94) -> 2 | G94: =SUM(N94:BO94) -> 152 | H94: x | I94: =COUNTIF(BQ94:DR94,2) -> 0 | J94: =COUNTIF(BQ94:DR94,-2) -> 0 | K94: =COUNTIF(BQ94:DR94,1) -> 0 | L94: =COUNTIF(BQ94:DR94,-1) -> 0 | M94: =IF(F94>0,(I94+K94)/(F94),0) -> 0 | N94: 104 | O94: 48 | DT94: 90 | DU94: 90 | DV94: 90 | DX94: 1 | EB94: 88 | ED94: 90 | EE94: (90) | EF94: (-)
A95: 91 ((-)) | B95: Åsa Karlsson | C95: Korpen Nybro | D95: =IF(F95>0.5,(G95/F95),0) -> 75.6 | F95: =COUNT(N95:BO95) -> 5 | G95: =SUM(N95:BO95) -> 378 | H95: x | I95: =COUNTIF(BQ95:DR95,2) -> 0 | J95: =COUNTIF(BQ95:DR95,-2) -> 0 | K95: =COUNTIF(BQ95:DR95,1) -> 0 | L95: =COUNTIF(BQ95:DR95,-1) -> 0 | M95: =IF(F95>0,(I95+K95)/(F95),0) -> 0 | N95: 68 | O95: 73 | P95: 34 | Q95: 76 | R95: 127 | DT95: 91 | DU95: 91 | DV95: 91 | DX95: 1 | EB95: 89 | ED95: 91 | EE95: (91) | EF95: (-)
A96: 92 ((-)) | B96: Ulrika Rydell | C96: Värends Hsk | D96: =IF(F96>0.5,(G96/F96),0) -> 75.08333333 | F96: =COUNT(N96:BO96) -> 12 | G96: =SUM(N96:BO96) -> 901 | H96: x | I96: =COUNTIF(BQ96:DR96,2) -> 0 | J96: =COUNTIF(BQ96:DR96,-2) -> 0 | K96: =COUNTIF(BQ96:DR96,1) -> 0 | L96: =COUNTIF(BQ96:DR96,-1) -> 0 | M96: =IF(F96>0,(I96+K96)/(F96),0) -> 0 | N96: 64 | O96: 52 | P96: 34 | Q96: 65 | R96: 97 | S96: 27 | T96: 139 | U96: 78 | V96: 50 | W96: 71 | X96: 96 | Y96: 128 | DT96: 92 | DU96: 92 | DV96: 92 | DX96: 1 | EB96: 112 | ED96: 92 | EE96: (92) | EF96: (-)
A97: 93 ((-)) | B97: Clara Larsson | C97: Värends Hsk | D97: =IF(F97>0.5,(G97/F97),0) -> 72.77777778 | F97: =COUNT(N97:BO97) -> 9 | G97: =SUM(N97:BO97) -> 655 | H97: x | I97: =COUNTIF(BQ97:DR97,2) -> 0 | J97: =COUNTIF(BQ97:DR97,-2) -> 0 | K97: =COUNTIF(BQ97:DR97,1) -> 0 | L97: =COUNTIF(BQ97:DR97,-1) -> 0 | M97: =IF(F97>0,(I97+K97)/(F97),0) -> 0 | N97: 90 | O97: 96 | P97: 7 | Q97: 69 | R97: 61 | S97: 64 | T97: 85 | U97: 95 | V97: 88 | DT97: 93 | DU97: 93 | DV97: 93 | DX97: 1 | EB97: 90 | ED97: 93 | EE97: (93) | EF97: (-)
A98: 94 ((-)) | B98: Micael Carlsson | C98: Värends Hsk | D98: =IF(F98>0.5,(G98/F98),0) -> 70.25 | F98: =COUNT(N98:BO98) -> 8 | G98: =SUM(N98:BO98) -> 562 | H98: x | I98: =COUNTIF(BQ98:DR98,2) -> 0 | J98: =COUNTIF(BQ98:DR98,-2) -> 0 | K98: =COUNTIF(BQ98:DR98,1) -> 0 | L98: =COUNTIF(BQ98:DR98,-1) -> 0 | M98: =IF(F98>0,(I98+K98)/(F98),0) -> 0 | N98: 44 | O98: 60 | P98: 67 | Q98: 118 | R98: 66 | S98: 71 | T98: 54 | U98: 82 | DT98: 94 | DU98: 94 | DV98: 94 | DX98: 1 | EB98: 91 | ED98: 94 | EE98: (94) | EF98: (-)
A99: 95 ((-)) | B99: Lisbeth Blihd | C99: Lanternan | D99: =IF(F99>0.5,(G99/F99),0) -> 65.4 | F99: =COUNT(N99:BO99) -> 5 | G99: =SUM(N99:BO99) -> 327 | H99: x | I99: =COUNTIF(BQ99:DR99,2) -> 0 | J99: =COUNTIF(BQ99:DR99,-2) -> 0 | K99: =COUNTIF(BQ99:DR99,1) -> 0 | L99: =COUNTIF(BQ99:DR99,-1) -> 0 | M99: =IF(F99>0,(I99+K99)/(F99),0) -> 0 | N99: 62 | O99: 58 | P99: 77 | Q99: 89 | R99: 41 | DT99: 95 | DU99: 95 | DV99: 95 | DX99: 1 | EB99: 92 | ED99: 95 | EE99: (95) | EF99: (-)
A100: 96 ((-)) | B100: Conny Bark | C100: Värends Hsk | D100: =IF(F100>0.5,(G100/F100),0) -> 63.75 | F100: =COUNT(N100:BO100) -> 16 | G100: =SUM(N100:BO100) -> 1020 | H100: x | I100: =COUNTIF(BQ100:DR100,2) -> 0 | J100: =COUNTIF(BQ100:DR100,-2) -> 0 | K100: =COUNTIF(BQ100:DR100,1) -> 0 | L100: =COUNTIF(BQ100:DR100,-1) -> 0 | M100: =IF(F100>0,(I100+K100)/(F100),0) -> 0 | N100: 51 | O100: 57 | P100: 100 | Q100: 60 | R100: 94 | S100: 45 | T100: 56 | U100: 60 | V100: 27 | W100: 94 | X100: 115 | Y100: 47 | Z100: 50 | AA100: 67 | AB100: 17 | AC100: 80 | DT100: 96 | DU100: 96 | DV100: 96 | DX100: 1 | EB100: 63 | ED100: 96 | EE100: (96) | EF100: (-)
A101: 97 ((-)) | B101: Emma Anjou | C101: Balders Hsk | D101: =IF(F101>0.5,(G101/F101),0) -> 61.4 | F101: =COUNT(N101:BO101) -> 5 | G101: =SUM(N101:BO101) -> 307 | H101: x | I101: =COUNTIF(BQ101:DR101,2) -> 0 | J101: =COUNTIF(BQ101:DR101,-2) -> 0 | K101: =COUNTIF(BQ101:DR101,1) -> 0 | L101: =COUNTIF(BQ101:DR101,-1) -> 0 | M101: =IF(F101>0,(I101+K101)/(F101),0) -> 0 | N101: 60 | O101: 54 | P101: 78 | Q101: 56 | R101: 59 | DT101: 97 | DU101: 97 | DV101: =IF(DX101=1,ROW(97:97),"-") -> 97 | DX101: 1 | EB101: 93 | ED101: =IF(DX101=1,DU101,IF(DX101="",DU101,"")) -> 97 | EE101: =IF(DX101=1,"("&DT101&")","("&DV101&")") -> (97) | EF101: (-)
A102: 98 ((-)) | B102: Bo Petersson | C102: Korpen Nybro | D102: =IF(F102>0.5,(G102/F102),0) -> 61.36363636 | F102: =COUNT(N102:BO102) -> 11 | G102: =SUM(N102:BO102) -> 675 | H102: x | I102: =COUNTIF(BQ102:DR102,2) -> 0 | J102: =COUNTIF(BQ102:DR102,-2) -> 0 | K102: =COUNTIF(BQ102:DR102,1) -> 0 | L102: =COUNTIF(BQ102:DR102,-1) -> 0 | M102: =IF(F102>0,(I102+K102)/(F102),0) -> 0 | N102: 76 | O102: 50 | P102: 58 | Q102: 101 | R102: 58 | S102: 44 | T102: 81 | U102: 50 | V102: 65 | W102: 44 | X102: 48 | DT102: 98 | DU102: 98 | DV102: 98 | DX102: 1 | EB102: 94 | ED102: 98 | EE102: (98) | EF102: (-)
A103: 99 ((-)) | B103: Kim Knutsen | C103: Värends Hsk | D103: =IF(F103>0.5,(G103/F103),0) -> 60.5 | F103: =COUNT(N103:BO103) -> 2 | G103: =SUM(N103:BO103) -> 121 | H103: x | I103: =COUNTIF(BQ103:DR103,2) -> 0 | J103: =COUNTIF(BQ103:DR103,-2) -> 0 | K103: =COUNTIF(BQ103:DR103,1) -> 0 | L103: =COUNTIF(BQ103:DR103,-1) -> 0 | M103: =IF(F103>0,(I103+K103)/(F103),0) -> 0 | N103: 58 | O103: 63 | DT103: 99 | DU103: 99 | DV103: 99 | DX103: 1 | EB103: 95 | ED103: 99 | EE103: (99) | EF103: (-)
A104: 99 ((-)) | B104: Thomas Dahl | C104: Växjö Hsk | D104: =IF(F104>0.5,(G104/F104),0) -> 60.5 | F104: =COUNT(N104:BO104) -> 2 | G104: =SUM(N104:BO104) -> 121 | H104: x | I104: =COUNTIF(BQ104:DR104,2) -> 0 | J104: =COUNTIF(BQ104:DR104,-2) -> 0 | K104: =COUNTIF(BQ104:DR104,1) -> 0 | L104: =COUNTIF(BQ104:DR104,-1) -> 0 | M104: =IF(F104>0,(I104+K104)/(F104),0) -> 0 | N104: 48 | O104: 73 | DT104: 99 | DU104: 99 | DV104: 100 | DX104: 1 | EB104: 96 | ED104: 99 | EE104: (99) | EF104: (-)
A105: 101 ((-)) | B105: Ove Klasson | C105: Tingsryd Hsc | D105: =IF(F105>0.5,(G105/F105),0) -> 59.5 | F105: =COUNT(N105:BO105) -> 8 | G105: =SUM(N105:BO105) -> 476 | H105: x | I105: =COUNTIF(BQ105:DR105,2) -> 0 | J105: =COUNTIF(BQ105:DR105,-2) -> 0 | K105: =COUNTIF(BQ105:DR105,1) -> 0 | L105: =COUNTIF(BQ105:DR105,-1) -> 0 | M105: =IF(F105>0,(I105+K105)/(F105),0) -> 0 | N105: 74 | O105: 68 | P105: 94 | Q105: 34 | R105: 57 | S105: 61 | T105: 37 | U105: 51 | DT105: 101 | DU105: 101 | DV105: 101 | DX105: 1 | EB105: 97 | ED105: 101 | EE105: (101) | EF105: (-)
A106: 102 ((-)) | B106: Hugo Bark | C106: Värends Hsk | D106: =IF(F106>0.5,(G106/F106),0) -> 40 | F106: =COUNT(N106:BO106) -> 2 | G106: =SUM(N106:BO106) -> 80 | H106: x | I106: =COUNTIF(BQ106:DR106,2) -> 0 | J106: =COUNTIF(BQ106:DR106,-2) -> 0 | K106: =COUNTIF(BQ106:DR106,1) -> 0 | L106: =COUNTIF(BQ106:DR106,-1) -> 0 | M106: =IF(F106>0,(I106+K106)/(F106),0) -> 0 | N106: 26 | O106: 54 | DT106: 102 | DU106: 102 | DV106: 102 | DX106: 1 | EB106: 98 | ED106: 102 | EE106: (102) | EF106: (-)
A107: 103 ((-)) | B107: Nils-Åke Hansson | C107: Korpen Nybro | D107: =IF(F107>0.5,(G107/F107),0) -> 37.6 | F107: =COUNT(N107:BO107) -> 5 | G107: =SUM(N107:BO107) -> 188 | H107: x | I107: =COUNTIF(BQ107:DR107,2) -> 0 | J107: =COUNTIF(BQ107:DR107,-2) -> 0 | K107: =COUNTIF(BQ107:DR107,1) -> 0 | L107: =COUNTIF(BQ107:DR107,-1) -> 0 | M107: =IF(F107>0,(I107+K107)/(F107),0) -> 0 | N107: 24 | O107: 45 | P107: 24 | Q107: 64 | R107: 31 | DT107: 103 | DU107: =IF(AND(D107=D106,D107=D105,D107=D104,D107=D103),ROW(99:99),IF(AND(D107=D106,D107=D105,D107=D104),ROW(100:100),IF(AND(D107=D106,D107=D105),ROW(101:101),IF(D107=D106,ROW(102:102),IF(D107>1,ROW(103:103),"-"))))) -> 103 | DV107: 103 | DX107: 1 | EB107: 99 | ED107: 103 | EE107: (103) | EF107: (-)
A108: 104 ((-)) | B108: Victor Bengtsson | C108: Vaxholm Hsk | D108: =IF(F108>0.5,(G108/F108),0) -> 27.5 | F108: =COUNT(N108:BO108) -> 2 | G108: =SUM(N108:BO108) -> 55 | H108: x | I108: =COUNTIF(BQ108:DR108,2) -> 0 | J108: =COUNTIF(BQ108:DR108,-2) -> 0 | K108: =COUNTIF(BQ108:DR108,1) -> 0 | L108: =COUNTIF(BQ108:DR108,-1) -> 0 | M108: =IF(F108>0,(I108+K108)/(F108),0) -> 0 | N108: 21 | O108: 34 | DT108: 104 | DU108: 104 | DV108: 104 | DX108: 1 | EB108: 100 | ED108: 104 | EE108: (104) | EF108: (-)
A109: - ((-)) | D109: =IF(F109>0.5,(G109/F109),0) -> 0 | F109: =COUNT(N109:BO109) -> 0 | G109: =SUM(N109:BO109) -> 0 | H109: x | I109: =COUNTIF(BQ109:DR109,2) -> 0 | J109: =COUNTIF(BQ109:DR109,-2) -> 0 | K109: =COUNTIF(BQ109:DR109,1) -> 0 | L109: =COUNTIF(BQ109:DR109,-1) -> 0 | M109: =IF(F109>0,(I109+K109)/(F109),0) -> 0 | DT109: - | DU109: - | DV109: 105 | DX109: 1 | EB109: 101 | ED109: - | EE109: (-) | EF109: (-)
A110: 105 ((-)) | D110: =IF(F110>0.5,(G110/F110),0) -> 0 | F110: =COUNT(N110:BO110) -> 0 | G110: =SUM(N110:BO110) -> 0 | H110: x | I110: =COUNTIF(BQ110:DR110,2) -> 0 | J110: =COUNTIF(BQ110:DR110,-2) -> 0 | K110: =COUNTIF(BQ110:DR110,1) -> 0 | L110: =COUNTIF(BQ110:DR110,-1) -> 0 | M110: =IF(F110>0,(I110+K110)/(F110),0) -> 0 | DT110: 105 | DU110: 105 | DV110: 106 | DX110: 1 | EB110: 102 | ED110: 105 | EE110: (105) | EF110: (-)
A111: 105 ((-)) | D111: =IF(F111>0.5,(G111/F111),0) -> 0 | F111: =COUNT(N111:BO111) -> 0 | G111: =SUM(N111:BO111) -> 0 | H111: x | I111: =COUNTIF(BQ111:DR111,2) -> 0 | J111: =COUNTIF(BQ111:DR111,-2) -> 0 | K111: =COUNTIF(BQ111:DR111,1) -> 0 | L111: =COUNTIF(BQ111:DR111,-1) -> 0 | M111: =IF(F111>0,(I111+K111)/(F111),0) -> 0 | DT111: 105 | DU111: 105 | DV111: 107 | DX111: 1 | EB111: 110 | ED111: 105 | EE111: (105) | EF111: (-)
A112: 105 ((-)) | D112: =IF(F112>0.5,(G112/F112),0) -> 0 | F112: =COUNT(N112:BO112) -> 0 | G112: =SUM(N112:BO112) -> 0 | H112: x | I112: =COUNTIF(BQ112:DR112,2) -> 0 | J112: =COUNTIF(BQ112:DR112,-2) -> 0 | K112: =COUNTIF(BQ112:DR112,1) -> 0 | L112: =COUNTIF(BQ112:DR112,-1) -> 0 | M112: =IF(F112>0,(I112+K112)/(F112),0) -> 0 | DT112: 105 | DU112: 105 | DV112: 108 | DX112: 1 | EB112: 103 | ED112: 105 | EE112: (105) | EF112: (-)
A113: 105 ((-)) | D113: =IF(F113>0.5,(G113/F113),0) -> 0 | F113: =COUNT(N113:BO113) -> 0 | G113: =SUM(N113:BO113) -> 0 | H113: x | I113: =COUNTIF(BQ113:DR113,2) -> 0 | J113: =COUNTIF(BQ113:DR113,-2) -> 0 | K113: =COUNTIF(BQ113:DR113,1) -> 0 | L113: =COUNTIF(BQ113:DR113,-1) -> 0 | M113: =IF(F113>0,(I113+K113)/(F113),0) -> 0 | DT113: 105 | DU113: 105 | DV113: 109 | DX113: 1 | EB113: 104 | ED113: 105 | EE113: (105) | EF113: (-)
A114: 106 ((-)) | D114: =IF(F114>0.5,(G114/F114),0) -> 0 | F114: =COUNT(N114:BO114) -> 0 | G114: =SUM(N114:BO114) -> 0 | H114: x | I114: =COUNTIF(BQ114:DR114,2) -> 0 | J114: =COUNTIF(BQ114:DR114,-2) -> 0 | K114: =COUNTIF(BQ114:DR114,1) -> 0 | L114: =COUNTIF(BQ114:DR114,-1) -> 0 | M114: =IF(F114>0,(I114+K114)/(F114),0) -> 0 | DT114: 106 | DU114: 106 | DV114: 110 | DX114: 1 | EB114: 105 | ED114: 106 | EE114: (106) | EF114: (-)
A115: 107 ((-)) | D115: =IF(F115>0.5,(G115/F115),0) -> 0 | F115: =COUNT(N115:BO115) -> 0 | G115: =SUM(N115:BO115) -> 0 | H115: x | I115: =COUNTIF(BQ115:DR115,2) -> 0 | J115: =COUNTIF(BQ115:DR115,-2) -> 0 | K115: =COUNTIF(BQ115:DR115,1) -> 0 | L115: =COUNTIF(BQ115:DR115,-1) -> 0 | M115: =IF(F115>0,(I115+K115)/(F115),0) -> 0 | DT115: 107 | DU115: 107 | DV115: 111 | DX115: 1 | EB115: 106 | ED115: 107 | EE115: (107) | EF115: (-)
A116: 108 ((-)) | D116: =IF(F116>0.5,(G116/F116),0) -> 0 | F116: =COUNT(N116:BO116) -> 0 | G116: =SUM(N116:BO116) -> 0 | H116: x | I116: =COUNTIF(BQ116:DR116,2) -> 0 | J116: =COUNTIF(BQ116:DR116,-2) -> 0 | K116: =COUNTIF(BQ116:DR116,1) -> 0 | L116: =COUNTIF(BQ116:DR116,-1) -> 0 | M116: =IF(F116>0,(I116+K116)/(F116),0) -> 0 | DT116: 108 | DU116: 108 | DV116: 112 | DX116: 1 | EB116: 107 | ED116: 108 | EE116: (108) | EF116: (-)
A117: 109 ((-)) | D117: =IF(F117>0.5,(G117/F117),0) -> 0 | F117: =COUNT(N117:BO117) -> 0 | G117: =SUM(N117:BO117) -> 0 | H117: x | I117: =COUNTIF(BQ117:DR117,2) -> 0 | J117: =COUNTIF(BQ117:DR117,-2) -> 0 | K117: =COUNTIF(BQ117:DR117,1) -> 0 | L117: =COUNTIF(BQ117:DR117,-1) -> 0 | M117: =IF(F117>0,(I117+K117)/(F117),0) -> 0 | DT117: 109 | DU117: 109 | DV117: 113 | DX117: 1 | EB117: 108 | ED117: 109 | EE117: (109) | EF117: (-)
A118: 110 ((-)) | D118: =IF(F118>0.5,(G118/F118),0) -> 0 | F118: =COUNT(N118:BO118) -> 0 | G118: =SUM(N118:BO118) -> 0 | H118: x | I118: =COUNTIF(BQ118:DR118,2) -> 0 | J118: =COUNTIF(BQ118:DR118,-2) -> 0 | K118: =COUNTIF(BQ118:DR118,1) -> 0 | L118: =COUNTIF(BQ118:DR118,-1) -> 0 | M118: =IF(F118>0,(I118+K118)/(F118),0) -> 0 | DT118: 110 | DU118: 110 | DV118: 114 | DX118: 1 | EB118: 109 | ED118: 110 | EE118: (110) | EF118: (-)
A119: 111 ((-)) | D119: =IF(F119>0.5,(G119/F119),0) -> 0 | F119: =COUNT(N119:BO119) -> 0 | G119: =SUM(N119:BO119) -> 0 | H119: x | I119: =COUNTIF(BQ119:DR119,2) -> 0 | J119: =COUNTIF(BQ119:DR119,-2) -> 0 | K119: =COUNTIF(BQ119:DR119,1) -> 0 | L119: =COUNTIF(BQ119:DR119,-1) -> 0 | M119: =IF(F119>0,(I119+K119)/(F119),0) -> 0 | DT119: 111 | DU119: 111 | DV119: 115 | DX119: 1 | EB119: 112 | ED119: 111 | EE119: (111) | EF119: (-)
A120: 112 ((-)) | D120: =IF(F120>0.5,(G120/F120),0) -> 0 | F120: =COUNT(N120:BO120) -> 0 | G120: =SUM(N120:BO120) -> 0 | H120: x | I120: =COUNTIF(BQ120:DR120,2) -> 0 | J120: =COUNTIF(BQ120:DR120,-2) -> 0 | K120: =COUNTIF(BQ120:DR120,1) -> 0 | L120: =COUNTIF(BQ120:DR120,-1) -> 0 | M120: =IF(F120>0,(I120+K120)/(F120),0) -> 0 | DT120: 112 | DU120: 112 | DV120: 116 | DX120: 1 | EB120: 110 | ED120: 112 | EE120: (112) | EF120: (-)
A121: 113 ((-)) | D121: =IF(F121>0.5,(G121/F121),0) -> 0 | F121: =COUNT(N121:BO121) -> 0 | G121: =SUM(N121:BO121) -> 0 | H121: x | I121: =COUNTIF(BQ121:DR121,2) -> 0 | J121: =COUNTIF(BQ121:DR121,-2) -> 0 | K121: =COUNTIF(BQ121:DR121,1) -> 0 | L121: =COUNTIF(BQ121:DR121,-1) -> 0 | M121: =IF(F121>0,(I121+K121)/(F121),0) -> 0 | DT121: 113 | DU121: =IF(AND(D121=D120,D121=D119,D121=D118,D121=D117),ROW(113:113),IF(AND(D121=D120,D121=D119,D121=D118),ROW(114:114),IF(AND(D121=D120,D121=D119),ROW(115:115),IF(D121=D120,ROW(116:116),IF(D121>1,ROW(117:117),"-"))))) -> 113 | DV121: =IF(DX121=1,ROW(117:117),"-") -> 117 | DX121: 1 | EB121: 111 | ED121: =IF(DX121=1,DU121,IF(DX121="",DU121,"")) -> 113 | EE121: =IF(DX121=1,"("&DT121&")","("&DV121&")") -> (113) | EF121: (-)
A122: 114 ((-)) | D122: =IF(F122>0.5,(G122/F122),0) -> 0 | F122: =COUNT(N122:BO122) -> 0 | G122: =SUM(N122:BO122) -> 0 | H122: x | I122: =COUNTIF(BQ122:DR122,2) -> 0 | J122: =COUNTIF(BQ122:DR122,-2) -> 0 | K122: =COUNTIF(BQ122:DR122,1) -> 0 | L122: =COUNTIF(BQ122:DR122,-1) -> 0 | M122: =IF(F122>0,(I122+K122)/(F122),0) -> 0 | DT122: 114 | DU122: =IF(AND(D122=D121,D122=D120,D122=D119,D122=D118),ROW(114:114),IF(AND(D122=D121,D122=D120,D122=D119),ROW(115:115),IF(AND(D122=D121,D122=D120),ROW(116:116),IF(D122=D121,ROW(117:117),IF(D122>1,ROW(118:118),"-"))))) -> 114 | DV122: =IF(DX122=1,ROW(118:118),"-") -> 118 | DX122: 1 | EB122: 113 | ED122: =IF(DX122=1,DU122,IF(DX122="",DU122,"")) -> 114 | EE122: =IF(DX122=1,"("&DT122&")","("&DV122&")") -> (114) | EF122: (-)
A123: 115 ((-)) | D123: =IF(F123>0.5,(G123/F123),0) -> 0 | F123: =COUNT(N123:BO123) -> 0 | G123: =SUM(N123:BO123) -> 0 | H123: x | I123: =COUNTIF(BQ123:DR123,2) -> 0 | J123: =COUNTIF(BQ123:DR123,-2) -> 0 | K123: =COUNTIF(BQ123:DR123,1) -> 0 | L123: =COUNTIF(BQ123:DR123,-1) -> 0 | M123: =IF(F123>0,(I123+K123)/(F123),0) -> 0 | DT123: 115 | DU123: =IF(AND(D123=D122,D123=D121,D123=D120,D123=D119),ROW(115:115),IF(AND(D123=D122,D123=D121,D123=D120),ROW(116:116),IF(AND(D123=D122,D123=D121),ROW(117:117),IF(D123=D122,ROW(118:118),IF(D123>1,ROW(119:119),"-"))))) -> 115 | DV123: =IF(DX123=1,ROW(119:119),"-") -> 119 | DX123: 1 | EB123: 113 | ED123: =IF(DX123=1,DU123,IF(DX123="",DU123,"")) -> 115 | EE123: =IF(DX123=1,"("&DT123&")","("&DV123&")") -> (115) | EF123: (-)
A124: =IF(H124="x",DU124&" ("&EF124&")",DU124&" ("&DT124&")") -> 116 ((-)) | D124: =IF(F124>0.5,(G124/F124),0) -> 0 | F124: =COUNT(N124:BO124) -> 0 | G124: =SUM(N124:BO124) -> 0 | H124: x | I124: =COUNTIF(BQ124:DR124,2) -> 0 | J124: =COUNTIF(BQ124:DR124,-2) -> 0 | K124: =COUNTIF(BQ124:DR124,1) -> 0 | L124: =COUNTIF(BQ124:DR124,-1) -> 0 | M124: =IF(F124>0,(I124+K124)/(F124),0) -> 0 | DT124: 116 | DU124: =IF(AND(D124=D123,D124=D122,D124=D121,D124=D120),ROW(116:116),IF(AND(D124=D123,D124=D122,D124=D121),ROW(117:117),IF(AND(D124=D123,D124=D122),ROW(118:118),IF(D124=D123,ROW(119:119),IF(D124>1,ROW(120:120),"-"))))) -> 116 | DV124: =IF(DX124=1,ROW(120:120),"-") -> 120 | DX124: 1 | EB124: 113 | ED124: =IF(DX124=1,DU124,IF(DX124="",DU124,"")) -> 116 | EE124: =IF(DX124=1,"("&DT124&")","("&DV124&")") -> (116) | EF124: (-)
A125: 117 ((-)) | D125: =IF(F125>0.5,(G125/F125),0) -> 0 | F125: =COUNT(N125:BO125) -> 0 | G125: =SUM(N125:BO125) -> 0 | H125: x | I125: =COUNTIF(BQ125:DR125,2) -> 0 | J125: =COUNTIF(BQ125:DR125,-2) -> 0 | K125: =COUNTIF(BQ125:DR125,1) -> 0 | L125: =COUNTIF(BQ125:DR125,-1) -> 0 | M125: =IF(F125>0,(I125+K125)/(F125),0) -> 0 | DT125: 117 | DU125: 117 | DV125: 121 | DX125: 1 | EB125: 113 | ED125: 117 | EE125: (117) | EF125: (-)
A126: 118 ((-)) | D126: =IF(F126>0.5,(G126/F126),0) -> 0 | F126: =COUNT(N126:BO126) -> 0 | G126: =SUM(N126:BO126) -> 0 | H126: x | I126: =COUNTIF(BQ126:DR126,2) -> 0 | J126: =COUNTIF(BQ126:DR126,-2) -> 0 | K126: =COUNTIF(BQ126:DR126,1) -> 0 | L126: =COUNTIF(BQ126:DR126,-1) -> 0 | M126: =IF(F126>0,(I126+K126)/(F126),0) -> 0 | DT126: 118 | DU126: 118 | DV126: 122 | DX126: 1 | EB126: 113 | ED126: 118 | EE126: (118) | EF126: (-)
A127: 119 ((-)) | D127: =IF(F127>0.5,(G127/F127),0) -> 0 | F127: =COUNT(N127:BO127) -> 0 | G127: =SUM(N127:BO127) -> 0 | H127: x | I127: =COUNTIF(BQ127:DR127,2) -> 0 | J127: =COUNTIF(BQ127:DR127,-2) -> 0 | K127: =COUNTIF(BQ127:DR127,1) -> 0 | L127: =COUNTIF(BQ127:DR127,-1) -> 0 | M127: =IF(F127>0,(I127+K127)/(F127),0) -> 0 | DT127: 119 | DU127: 119 | DV127: 123 | DX127: 1 | EB127: 113 | ED127: 119 | EE127: (119) | EF127: (-)
A128: 120 ((-)) | D128: =IF(F128>0.5,(G128/F128),0) -> 0 | F128: =COUNT(N128:BO128) -> 0 | G128: =SUM(N128:BO128) -> 0 | H128: x | I128: =COUNTIF(BQ128:DR128,2) -> 0 | J128: =COUNTIF(BQ128:DR128,-2) -> 0 | K128: =COUNTIF(BQ128:DR128,1) -> 0 | L128: =COUNTIF(BQ128:DR128,-1) -> 0 | M128: =IF(F128>0,(I128+K128)/(F128),0) -> 0 | DT128: 120 | DU128: 120 | DV128: 124 | DX128: 1 | EB128: 113 | ED128: 120 | EE128: (120) | EF128: (-)
A129: 121 ((-)) | D129: =IF(F129>0.5,(G129/F129),0) -> 0 | F129: =COUNT(N129:BO129) -> 0 | G129: =SUM(N129:BO129) -> 0 | H129: x | I129: =COUNTIF(BQ129:DR129,2) -> 0 | J129: =COUNTIF(BQ129:DR129,-2) -> 0 | K129: =COUNTIF(BQ129:DR129,1) -> 0 | L129: =COUNTIF(BQ129:DR129,-1) -> 0 | M129: =IF(F129>0,(I129+K129)/(F129),0) -> 0 | DT129: 121 | DU129: 121 | DV129: 125 | DX129: 1 | EB129: 113 | ED129: 121 | EE129: (121) | EF129: (-)
A130: 122 ((-)) | D130: =IF(F130>0.5,(G130/F130),0) -> 0 | F130: =COUNT(N130:BO130) -> 0 | G130: =SUM(N130:BO130) -> 0 | H130: x | I130: =COUNTIF(BQ130:DR130,2) -> 0 | J130: =COUNTIF(BQ130:DR130,-2) -> 0 | K130: =COUNTIF(BQ130:DR130,1) -> 0 | L130: =COUNTIF(BQ130:DR130,-1) -> 0 | M130: =IF(F130>0,(I130+K130)/(F130),0) -> 0 | DT130: 122 | DU130: 122 | DV130: 126 | DX130: 1 | EB130: 113 | ED130: 122 | EE130: (122) | EF130: (-)
A131: 123 ((-)) | D131: =IF(F131>0.5,(G131/F131),0) -> 0 | F131: =COUNT(N131:BO131) -> 0 | G131: =SUM(N131:BO131) -> 0 | H131: x | I131: =COUNTIF(BQ131:DR131,2) -> 0 | J131: =COUNTIF(BQ131:DR131,-2) -> 0 | K131: =COUNTIF(BQ131:DR131,1) -> 0 | L131: =COUNTIF(BQ131:DR131,-1) -> 0 | M131: =IF(F131>0,(I131+K131)/(F131),0) -> 0 | DT131: 123 | DU131: 123 | DV131: 127 | DX131: 1 | EB131: 113 | ED131: 123 | EE131: (123) | EF131: (-)
A132: 124 ((-)) | D132: =IF(F132>0.5,(G132/F132),0) -> 0 | F132: =COUNT(N132:BO132) -> 0 | G132: =SUM(N132:BO132) -> 0 | H132: x | I132: =COUNTIF(BQ132:DR132,2) -> 0 | J132: =COUNTIF(BQ132:DR132,-2) -> 0 | K132: =COUNTIF(BQ132:DR132,1) -> 0 | L132: =COUNTIF(BQ132:DR132,-1) -> 0 | M132: =IF(F132>0,(I132+K132)/(F132),0) -> 0 | DT132: 125 | DU132: 124 | DV132: 128 | DX132: 1 | EB132: 113 | ED132: 124 | EE132: (125) | EF132: (-)
A133: 125 ((-)) | D133: 0 | F133: 0 | G133: 0 | H133: x | I133: 0 | J133: 0 | K133: 0 | L133: 0 | M133: 0 | DT133: 126 | DU133: 125 | DV133: 129 | DX133: 1 | EB133: 113 | ED133: 125 | EE133: (126) | EF133: (-)
A134: 126 ((-)) | D134: 0 | F134: 0 | G134: 0 | H134: x | I134: 0 | J134: 0 | K134: 0 | L134: 0 | M134: 0 | DT134: 127 | DU134: 126 | DV134: 130 | DX134: 1 | EB134: 113 | ED134: 126 | EE134: (127) | EF134: (-)
A135: 127 ((-)) | D135: 0 | F135: 0 | G135: 0 | H135: x | I135: 0 | J135: 0 | K135: 0 | L135: 0 | M135: 0 | DT135: 128 | DU135: 127 | DV135: 131 | DX135: 1 | EB135: 113 | ED135: 127 | EE135: (128) | EF135: (-)
A136: 128 ((-)) | D136: 0 | F136: 0 | G136: 0 | H136: x | I136: 0 | J136: 0 | K136: 0 | L136: 0 | M136: 0 | DT136: 129 | DU136: 128 | DV136: 132 | DX136: 1 | EB136: 113 | ED136: 128 | EE136: (129) | EF136: (-)
A137: 129 ((-)) | D137: 0 | F137: 0 | G137: 0 | H137: x | I137: 0 | J137: 0 | K137: 0 | L137: 0 | M137: 0 | DT137: 130 | DU137: 129 | DV137: 133 | DX137: 1 | EB137: 113 | ED137: 129 | EE137: (130) | EF137: (-)
A138: 130 ((-)) | D138: 0 | F138: 0 | G138: 0 | H138: x | I138: 0 | J138: 0 | K138: 0 | L138: 0 | M138: 0 | DT138: 131 | DU138: 130 | DV138: 134 | DX138: 1 | EB138: 113 | ED138: 130 | EE138: (131) | EF138: (-)
A139: 131 ((-)) | D139: 0 | F139: 0 | G139: 0 | H139: x | I139: 0 | J139: 0 | K139: 0 | L139: 0 | M139: 0 | DT139: 132 | DU139: 131 | DV139: 135 | DX139: 1 | EB139: 113 | ED139: 131 | EE139: (132) | EF139: (-)
A140: 132 ((-)) | D140: 0 | F140: 0 | G140: 0 | H140: x | I140: 0 | J140: 0 | K140: 0 | L140: 0 | M140: 0 | DT140: 133 | DU140: 132 | DV140: 136 | DX140: 1 | EB140: 113 | ED140: 132 | EE140: (133) | EF140: (-)
A141: 133 ((-)) | D141: 0 | F141: 0 | G141: 0 | H141: x | I141: 0 | J141: 0 | K141: 0 | L141: 0 | M141: 0 | DT141: 134 | DU141: 133 | DV141: 137 | DX141: 1 | EB141: 113 | ED141: 133 | EE141: (134) | EF141: (-)
A142: 134 ((-)) | D142: 0 | F142: 0 | G142: 0 | H142: x | I142: 0 | J142: 0 | K142: 0 | L142: 0 | M142: 0 | DT142: 135 | DU142: 134 | DV142: 138 | DX142: 1 | EB142: 113 | ED142: 134 | EE142: (135) | EF142: (-)
A143: =IF(H143="x",DU143&" ("&EF143&")",DU143&" ("&DT143&")") -> 135 ((-)) | D143: 0 | F143: 0 | G143: 0 | H143: x | I143: =COUNTIF(BQ143:DR143,2) -> 0 | J143: =COUNTIF(BQ143:DR143,-2) -> 0 | K143: =COUNTIF(BQ143:DR143,1) -> 0 | L143: =COUNTIF(BQ143:DR143,-1) -> 0 | M143: =IF(F143>0,(I143+K143)/(F143),0) -> 0 | DT143: 136 | DU143: 135 | DV143: 139 | DX143: 1 | EB143: 113 | ED143: 135 | EE143: (136) | EF143: (-)
A144: =IF(H144="x",DU144&" ("&EF144&")",DU144&" ("&DT144&")") -> 136 ((-)) | D144: 0 | F144: 0 | G144: 0 | H144: x | I144: =COUNTIF(BQ144:DR144,2) -> 0 | J144: =COUNTIF(BQ144:DR144,-2) -> 0 | K144: =COUNTIF(BQ144:DR144,1) -> 0 | L144: =COUNTIF(BQ144:DR144,-1) -> 0 | M144: =IF(F144>0,(I144+K144)/(F144),0) -> 0 | DT144: 137 | DU144: 136 | DV144: 140 | DX144: 1 | EB144: 113 | ED144: 136 | EE144: (137) | EF144: (-)
A145: =IF(H145="x",DU145&" ("&EF145&")",DU145&" ("&DT145&")") -> 137 ((-)) | D145: 0 | F145: 0 | G145: 0 | H145: x | I145: =COUNTIF(BQ145:DR145,2) -> 0 | J145: =COUNTIF(BQ145:DR145,-2) -> 0 | K145: =COUNTIF(BQ145:DR145,1) -> 0 | L145: =COUNTIF(BQ145:DR145,-1) -> 0 | M145: =IF(F145>0,(I145+K145)/(F145),0) -> 0 | DT145: 138 | DU145: 137 | DV145: 141 | DX145: 1 | EB145: 113 | ED145: 137 | EE145: (138) | EF145: (-)
A146: =IF(H146="x",DU146&" ("&EF146&")",DU146&" ("&DT146&")") -> 138 ((-)) | D146: 0 | F146: 0 | G146: 0 | H146: x | I146: =COUNTIF(BQ146:DR146,2) -> 0 | J146: =COUNTIF(BQ146:DR146,-2) -> 0 | K146: =COUNTIF(BQ146:DR146,1) -> 0 | L146: =COUNTIF(BQ146:DR146,-1) -> 0 | M146: =IF(F146>0,(I146+K146)/(F146),0) -> 0 | DT146: 139 | DU146: 138 | DV146: 142 | DX146: 1 | EB146: 113 | ED146: 138 | EE146: (139) | EF146: (-)
A147: =IF(H147="x",DU147&" ("&EF147&")",DU147&" ("&DT147&")") -> ()
A148: ()
A149: ()
A150: ()
A151: ()
A152: ()
A153: ()
A154: ()
A155: ()
A156: ()
A157: ()
A158: ()
A159: ()
A160: ()
A161: ()
A162: ()
A163: ()
A164: ()
A165: ()
A166: ()
A167: ()
A168: ()
A169: ()
A170: ()
A171: ()
A172: ()
A173: ()
A174: ()
A175: ()
A176: ()
A177: ()
A178: ()
A179: ()
A180: ()
A181: ()
A182: ()
A183: ()
A184: ()
A185: ()
A186: ()
A187: ()
A188: ()
A189: ()
A190: ()
A191: ()
A192: ()
A193: ()
A194: ()
A195: ()
A196: ()
A197: ()
A198: ()
A199: ()
A200: ()
... 113 more rows

Sheet Regler
A1: Seriespelsranking
A3: Alla individuella seriespelsresultaten under säsongen räknas in.
A4: Den som har högst snitt när säsongen är över vinner.
A6: För att kunna vara bland de tre pristagarna, måste man spelat minst 7 serier
A7: (Detta gäller även om man är aktuell för Sweden Masters, dvs är bland de 6 främsta).
A9: Skulle det vara kastare som hamnar på samma snitt när säsongen är över, och är bland de
A10: tre bästa så gäller detta för att skilja dem åt.
A12: 1. Det högsta serieresultatet, sedan näst högsta osv.
A13: 2. Skulle det fortfarande inte gå att skilja dem åt, så blir de på samma plats.
